Workbook

Sheet 急诊科院前急救医师A01
A1: 序号 | B1: 报名序号 | C1: 姓名 | D1: 身份证号 | E1: 岗位名称 | F1: 岗位代码 | G1: 抽签号 | H1: 面试成绩 | I1: 是否进入资格复审
A2: 1 | B2: 52001010003 | C2: 高前 | D2: 522424****204891 | E2: 急诊科院前急救医师 | F2: A01 | G2: 10 | H2: 85.00 | I2: 是
A3: 2 | B3: 52001010010 | C3: 党新琳 | D3: 520113****010822 | E3: 急诊科院前急救医师 | F3: A01 | G3: 11 | H3: 84.00 | I3: 是
A4: 3 | B4: 52001010009 | C4: 蔡英锐 | D4: 520112****040013 | E4: 急诊科院前急救医师 | F4: A01 | G4: 8 | H4: 81.33 | I4: 是
A5: 4 | B5: 52001010013 | C5: 罗吉发 | D5: 522424****171016 | E5: 急诊科院前急救医师 | F5: A01 | G5: 4 | H5: 81.00 | I5: 是
A6: 5 | B6: 52001010002 | C6: 姚德伟 | D6: 522122****185232 | E6: 急诊科院前急救医师 | F6: A01 | G6: 12 | H6: 77.67
A7: 6 | B7: 52001010017 | C7: 陈清梅 | D7: 522324****020027 | E7: 急诊科院前急救医师 | F7: A01 | G7: 15 | H7: 71.67
A8: 7 | B8: 52001010005 | C8: 李艳平 | D8: 522428****160660 | E8: 急诊科院前急救医师 | F8: A01 | H8: 缺考
A9: 8 | B9: 52001010008 | C9: 舒杨 | D9: 431228****211623 | E9: 急诊科院前急救医师 | F9: A01 | H9: 缺考
A10: 9 | B10: 52001010011 | C10: 马乐乐 | D10: 522225****115438 | E10: 急诊科院前急救医师 | F10: A01 | H10: 缺考
A11: 10 | B11: 52001010001 | C11: 冯琳璐 | D11: 522226****150126 | E11: 急诊科院前急救医师 | F11: A01 | H11: 缺考
A12: 11 | B12: 52001010019 | C12: 李志翔 | D12: 520121****06101X | E12: 急诊科院前急救医师 | F12: A01 | H12: 缺考
A13: 12 | B13: 52001010004 | C13: 吴贞章 | D13: 522729****250019 | E13: 急诊科院前急救医师 | F13: A01 | H13: 缺考
A14: 13 | B14: 52001010006 | C14: 田田 | D14: 522123****271061 | E14: 急诊科院前急救医师 | F14: A01 | H14: 缺考
A15: 14 | B15: 52001010012 | C15: 曾建松 | D15: 522122****156013 | E15: 急诊科院前急救医师 | F15: A01 | H15: 缺考
A16: 15 | B16: 52001010007 | C16: 宋明俭 | D16: 522423****104383 | E16: 急诊科院前急救医师 | F16: A01 | H16: 缺考

Sheet 医学工程科管理岗C02
A1: 序号 | B1: 报名序号 | C1: 姓名 | D1: 身份证号 | E1: 岗位名称 | F1: 岗位代码 | G1: 抽签号 | H1: 面试成绩 | I1: 是否进入资格复审
A2: 21 | B2: 52003020010 | C2: 史登练 | D2: 522423****171510 | E2: 医学工程科管理岗 | F2: C02 | G2: =VLOOKUP(C:C,[2]sheet1!$E$1:$F$65536,2,FALSE) -> 22 | H2: =VLOOKUP(G:G,[3]Sheet1!$A:$K,11,FALSE) -> 93.67 | I2: 是
A3: 33 | B3: 52003020022 | C3: 王立海 | D3: 522725****236811 | E3: 医学工程科管理岗 | F3: C02 | G3: =VLOOKUP(C:C,[2]sheet1!$E$1:$F$65536,2,FALSE) -> 33 | H3: =VLOOKUP(G:G,[3]Sheet1!$A:$K,11,FALSE) -> 91.33 | I3: 是
A4: 46 | B4: 52003020028 | C4: 蒙玺光 | D4: 522426****107773 | E4: 医学工程科管理岗 | F4: C02 | G4: =VLOOKUP(C:C,[2]sheet1!$E$1:$F$65536,2,FALSE) -> 11 | H4: =VLOOKUP(G:G,[3]Sheet1!$A:$K,11,FALSE) -> 89.67 | I4: 是
A5: 7 | B5: 52003020001 | C5: 吴晓婷 | D5: 522629****064822 | E5: 医学工程科管理岗 | F5: C02 | G5: =VLOOKUP(C:C,[2]sheet1!$E$1:$F$65536,2,FALSE) -> 6 | H5: =VLOOKUP(G:G,[3]Sheet1!$A:$K,11,FALSE) -> 85.33
A6: 40 | B6: 52003020049 | C6: 张姗 | D6: 511602****071549 | E6: 医学工程科管理岗 | F6: C02 | G6: =VLOOKUP(C:C,[2]sheet1!$E$1:$F$65536,2,FALSE) -> 26 | H6: =VLOOKUP(G:G,[3]Sheet1!$A:$K,11,FALSE) -> 85.00
A7: 13 | B7: 52003020002 | C7: 龙雪娇 | D7: 522226****260047 | E7: 医学工程科管理岗 | F7: C02 | G7: =VLOOKUP(C:C,[2]sheet1!$E$1:$F$65536,2,FALSE) -> 4 | H7: =VLOOKUP(G:G,[3]Sheet1!$A:$K,11,FALSE) -> 75.33
A8: 23 | B8: 52003020031 | C8: 肖烨 | D8: 522125****210027 | E8: 医学工程科管理岗 | F8: C02 | G8: =VLOOKUP(C:C,[2]sheet1!$E$1:$F$65536,2,FALSE) -> 27 | H8: =VLOOKUP(G:G,[3]Sheet1!$A:$K,11,FALSE) -> 75.33
A9: 37 | B9: 52003020005 | C9: 张健明 | D9: 522601****310021 | E9: 医学工程科管理岗 | F9: C02 | G9: =VLOOKUP(C:C,[2]sheet1!$E$1:$F$65536,2,FALSE) -> 19 | H9: =VLOOKUP(G:G,[3]Sheet1!$A:$K,11,FALSE) -> 75.33
A10: 36 | B10: 52003020046 | C10: 黄雨 | D10: 522122****256027 | E10: 医学工程科管理岗 | F10: C02 | G10: =VLOOKUP(C:C,[2]sheet1!$E$1:$F$65536,2,FALSE) -> 28 | H10: =VLOOKUP(G:G,[3]Sheet1!$A:$K,11,FALSE) -> 74.67
A11: 5 | B11: 52003020044 | C11: 李永幸 | D11: 522723****013325 | E11: 医学工程科管理岗 | F11: C02 | G11: =VLOOKUP(C:C,[2]sheet1!$E$1:$F$65536,2,FALSE) -> 43 | H11: =VLOOKUP(G:G,[3]Sheet1!$A:$K,11,FALSE) -> 74.33
A12: 3 | B12: 52003020016 | C12: 黄嘉晗 | D12: 522226****076486 | E12: 医学工程科管理岗 | F12: C02 | G12: =VLOOKUP(C:C,[2]sheet1!$E$1:$F$65536,2,FALSE) -> 15 | H12: =VLOOKUP(G:G,[3]Sheet1!$A:$K,11,FALSE) -> 74.00
A13: 4 | B13: 52003020014 | C13: 刘宇琛 | D13: 520181****020428 | E13: 医学工程科管理岗 | F13: C02 | G13: =VLOOKUP(C:C,[2]sheet1!$E$1:$F$65536,2,FALSE) -> 12 | H13: =VLOOKUP(G:G,[3]Sheet1!$A:$K,11,FALSE) -> 74.00
A14: 6 | B14: 52003020045 | C14: 吴明姣 | D14: 522631****10342X | E14: 医学工程科管理岗 | F14: C02 | G14: =VLOOKUP(C:C,[2]sheet1!$E$1:$F$65536,2,FALSE) -> 10 | H14: =VLOOKUP(G:G,[3]Sheet1!$A:$K,11,FALSE) -> 74.00
A15: 24 | B15: 52003020030 | C15: 樊小萍 | D15: 522225****156623 | E15: 医学工程科管理岗 | F15: C02 | G15: =VLOOKUP(C:C,[2]sheet1!$E$1:$F$65536,2,FALSE) -> 24 | H15: =VLOOKUP(G:G,[3]Sheet1!$A:$K,11,FALSE) -> 73.00
A16: 19 | B16: 52003020007 | C16: 金开飞 | D16: 520203****255425 | E16: 医学工程科管理岗 | F16: C02 | G16: =VLOOKUP(C:C,[2]sheet1!$E$1:$F$65536,2,FALSE) -> 36 | H16: =VLOOKUP(G:G,[3]Sheet1!$A:$K,11,FALSE) -> 72.67
A17: 15 | B17: 52003020033 | C17: 姚田 | D17: 522625****23332X | E17: 医学工程科管理岗 | F17: C02 | G17: =VLOOKUP(C:C,[2]sheet1!$E$1:$F$65536,2,FALSE) -> 37 | H17: =VLOOKUP(G:G,[3]Sheet1!$A:$K,11,FALSE) -> 72.00
A18: 39 | B18: 52003020034 | C18: 祝丽 | D18: 522124****160829 | E18: 医学工程科管理岗 | F18: C02 | G18: =VLOOKUP(C:C,[2]sheet1!$E$1:$F$65536,2,FALSE) -> 1 | H18: =VLOOKUP(G:G,[3]Sheet1!$A:$K,11,FALSE) -> 71.33
A19: 44 | B19: 52003020039 | C19: 耿丽仙 | D19: 530381****230528 | E19: 医学工程科管理岗 | F19: C02 | G19: =VLOOKUP(C:C,[2]sheet1!$E$1:$F$65536,2,FALSE) -> 7 | H19: =VLOOKUP(G:G,[3]Sheet1!$A:$K,11,FALSE) -> 71.33
A20: 31 | B20: 52003020054 | C20: 彭洪兰 | D20: 522130****240485 | E20: 医学工程科管理岗 | F20: C02 | G20: =VLOOKUP(C:C,[2]sheet1!$E$1:$F$65536,2,FALSE) -> 13 | H20: =VLOOKUP(G:G,[3]Sheet1!$A:$K,11,FALSE) -> 71.00
A21: 42 | B21: 52003020027 | C21: 李双玲 | D21: 522225****170068 | E21: 医学工程科管理岗 | F21: C02 | G21: =VLOOKUP(C:C,[2]sheet1!$E$1:$F$65536,2,FALSE) -> 17 | H21: =VLOOKUP(G:G,[3]Sheet1!$A:$K,11,FALSE) -> 71.00
A22: 17 | B22: 52003020029 | C22: 杨丽虹 | D22: 520102****124625 | E22: 医学工程科管理岗 | F22: C02 | G22: =VLOOKUP(C:C,[2]sheet1!$E$1:$F$65536,2,FALSE) -> 29 | H22: =VLOOKUP(G:G,[3]Sheet1!$A:$K,11,FALSE) -> 70.67
A23: 28 | B23: 52003020053 | C23: 廖玙杰 | D23: 513822****133208 | E23: 医学工程科管理岗 | F23: C02 | G23: =VLOOKUP(C:C,[2]sheet1!$E$1:$F$65536,2,FALSE) -> 25 | H23: =VLOOKUP(G:G,[3]Sheet1!$A:$K,11,FALSE) -> 70.00
A24: 45 | B24: 52003020042 | C24: 陈梦瑜 | D24: 500102****244301 | E24: 医学工程科管理岗 | F24: C02 | G24: =VLOOKUP(C:C,[2]sheet1!$E$1:$F$65536,2,FALSE) -> 31 | H24: =VLOOKUP(G:G,[3]Sheet1!$A:$K,11,FALSE) -> 69.00
A25: 1 | B25: 52003020008 | C25: 刘红妹 | D25: 522423****200047 | E25: 医学工程科管理岗 | F25: C02 | G25: =VLOOKUP(C:C,[2]sheet1!$E$1:$F$65536,2,FALSE) -> 30 | H25: =VLOOKUP(G:G,[3]Sheet1!$A:$K,11,FALSE) -> 缺考
A26: 2 | B26: 52003020003 | C26: 陈艳 | D26: 522426****130843 | E26: 医学工程科管理岗 | F26: C02 | G26: =VLOOKUP(C:C,[2]sheet1!$E$1:$F$65536,2,FALSE) -> 20 | H26: =VLOOKUP(G:G,[3]Sheet1!$A:$K,11,FALSE) -> 缺考
A27: 8 | B27: 52003020047 | C27: 龙其刚 | D27: 522123****102530 | E27: 医学工程科管理岗 | F27: C02 | G27: =VLOOKUP(C:C,[2]sheet1!$E$1:$F$65536,2,FALSE) -> 42 | H27: =VLOOKUP(G:G,[3]Sheet1!$A:$K,11,FALSE) -> 缺考
A28: 9 | B28: 52003020012 | C28: 陈奎锦 | D28: 522327****020019 | E28: 医学工程科管理岗 | F28: C02 | G28: =VLOOKUP(C:C,[2]sheet1!$E$1:$F$65536,2,FALSE) -> 46 | H28: =VLOOKUP(G:G,[3]Sheet1!$A:$K,11,FALSE) -> 缺考
A29: 10 | B29: 52003020025 | C29: 阮文俊 | D29: 522224****284457 | E29: 医学工程科管理岗 | F29: C02 | G29: =VLOOKUP(C:C,[2]sheet1!$E$1:$F$65536,2,FALSE) -> 5 | H29: =VLOOKUP(G:G,[3]Sheet1!$A:$K,11,FALSE) -> 缺考
A30: 11 | B30: 52003020050 | C30: 杨敏 | D30: 522424****120423 | E30: 医学工程科管理岗 | F30: C02 | G30: =VLOOKUP(C:C,[2]sheet1!$E$1:$F$65536,2,FALSE) -> 21 | H30: =VLOOKUP(G:G,[3]Sheet1!$A:$K,11,FALSE) -> 缺考
A31: 12 | B31: 52003020032 | C31: 徐岸 | D31: 522427****067211 | E31: 医学工程科管理岗 | F31: C02 | G31: =VLOOKUP(C:C,[2]sheet1!$E$1:$F$65536,2,FALSE) -> 41 | H31: =VLOOKUP(G:G,[3]Sheet1!$A:$K,11,FALSE) -> 缺考
A32: 14 | B32: 52003020015 | C32: 罗浪 | D32: 522401****272312 | E32: 医学工程科管理岗 | F32: C02 | G32: =VLOOKUP(C:C,[2]sheet1!$E$1:$F$65536,2,FALSE) -> 39 | H32: =VLOOKUP(G:G,[3]Sheet1!$A:$K,11,FALSE) -> 缺考
A33: 16 | B33: 52003020036 | C33: 严丹蕾 | D33: 520201****030823 | E33: 医学工程科管理岗 | F33: C02 | G33: =VLOOKUP(C:C,[2]sheet1!$E$1:$F$65536,2,FALSE) -> 23 | H33: =VLOOKUP(G:G,[3]Sheet1!$A:$K,11,FALSE) -> 缺考
A34: 18 | B34: 52003020051 | C34: 罗正雍 | D34: 522723****04171X | E34: 医学工程科管理岗 | F34: C02 | G34: =VLOOKUP(C:C,[2]sheet1!$E$1:$F$65536,2,FALSE) -> 9 | H34: =VLOOKUP(G:G,[3]Sheet1!$A:$K,11,FALSE) -> 缺考
A35: 20 | B35: 52003020011 | C35: 邓玉萍 | D35: 532623****251923 | E35: 医学工程科管理岗 | F35: C02 | G35: =VLOOKUP(C:C,[2]sheet1!$E$1:$F$65536,2,FALSE) -> 14 | H35: =VLOOKUP(G:G,[3]Sheet1!$A:$K,11,FALSE) -> 缺考
A36: 22 | B36: 52003020013 | C36: 陈晓璇 | D36: 522426****200125 | E36: 医学工程科管理岗 | F36: C02 | G36: =VLOOKUP(C:C,[2]sheet1!$E$1:$F$65536,2,FALSE) -> 34 | H36: =VLOOKUP(G:G,[3]Sheet1!$A:$K,11,FALSE) -> 缺考
A37: 25 | B37: 52003020038 | C37: 陈霜 | D37: 520327****19004X | E37: 医学工程科管理岗 | F37: C02 | G37: =VLOOKUP(C:C,[2]sheet1!$E$1:$F$65536,2,FALSE) -> 40 | H37: =VLOOKUP(G:G,[3]Sheet1!$A:$K,11,FALSE) -> 缺考
A38: 26 | B38: 52003020041 | C38: 敖梦丽 | D38: 530324****041722 | E38: 医学工程科管理岗 | F38: C02 | G38: =VLOOKUP(C:C,[2]sheet1!$E$1:$F$65536,2,FALSE) -> 3 | H38: =VLOOKUP(G:G,[3]Sheet1!$A:$K,11,FALSE) -> 缺考
A39: 27 | B39: 52003020019 | C39: 吴洪群 | D39: 522724****025746 | E39: 医学工程科管理岗 | F39: C02 | G39: =VLOOKUP(C:C,[2]sheet1!$E$1:$F$65536,2,FALSE) -> 8 | H39: =VLOOKUP(G:G,[3]Sheet1!$A:$K,11,FALSE) -> 缺考
A40: 29 | B40: 52003020048 | C40: 王青 | D40: 510525****053184 | E40: 医学工程科管理岗 | F40: C02 | G40: =VLOOKUP(C:C,[2]sheet1!$E$1:$F$65536,2,FALSE) -> 35 | H40: =VLOOKUP(G:G,[3]Sheet1!$A:$K,11,FALSE) -> 缺考
A41: 30 | B41: 52003020021 | C41: 王彦辉 | D41: 522701****181241 | E41: 医学工程科管理岗 | F41: C02 | G41: =VLOOKUP(C:C,[2]sheet1!$E$1:$F$65536,2,FALSE) -> 2 | H41: =VLOOKUP(G:G,[3]Sheet1!$A:$K,11,FALSE) -> 缺考
A42: 32 | B42: 52003020026 | C42: 肖玉英 | D42: 522428****161621 | E42: 医学工程科管理岗 | F42: C02 | G42: =VLOOKUP(C:C,[2]sheet1!$E$1:$F$65536,2,FALSE) -> 45 | H42: =VLOOKUP(G:G,[3]Sheet1!$A:$K,11,FALSE) -> 缺考
A43: 34 | B43: 52003020024 | C43: 苏下勇 | D43: 520203****066139 | E43: 医学工程科管理岗 | F43: C02 | G43: =VLOOKUP(C:C,[2]sheet1!$E$1:$F$65536,2,FALSE) -> 18 | H43: =VLOOKUP(G:G,[3]Sheet1!$A:$K,11,FALSE) -> 缺考
A44: 35 | B44: 52003020020 | C44: 窦林玉 | D44: 522423****269602 | E44: 医学工程科管理岗 | F44: C02 | G44: =VLOOKUP(C:C,[2]sheet1!$E$1:$F$65536,2,FALSE) -> 44 | H44: =VLOOKUP(G:G,[3]Sheet1!$A:$K,11,FALSE) -> 缺考
A45: 38 | B45: 52003020035 | C45: 王润琴 | D45: 522127****191521 | E45: 医学工程科管理岗 | F45: C02 | G45: =VLOOKUP(C:C,[2]sheet1!$E$1:$F$65536,2,FALSE) -> 16 | H45: =VLOOKUP(G:G,[3]Sheet1!$A:$K,11,FALSE) -> 缺考
A46: 41 | B46: 52003020023 | C46: 周玉华 | D46: 522422****113013 | E46: 医学工程科管理岗 | F46: C02 | G46: =VLOOKUP(C:C,[2]sheet1!$E$1:$F$65536,2,FALSE) -> 38 | H46: =VLOOKUP(G:G,[3]Sheet1!$A:$K,11,FALSE) -> 缺考
A47: 43 | B47: 52003020040 | C47: 曾平君 | D47: 522228****201288 | E47: 医学工程科管理岗 | F47: C02 | G47: =VLOOKUP(C:C,[2]sheet1!$E$1:$F$65536,2,FALSE) -> 32 | H47: =VLOOKUP(G:G,[3]Sheet1!$A:$K,11,FALSE) -> 缺考

Sheet 医务科医患关系管理岗C07
A1: 序号 | B1: 报名序号 | C1: 姓名 | D1: 身份证号 | E1: 岗位名称 | F1: 岗位代码 | G1: 抽签号 | H1: 面试成绩 | I1: 是否进入资格复审
A2: 1 | B2: 52003070004 | C2: 罗丞佑 | D2: 522723****120212 | E2: 医务科医患关系管理岗 | F2: C07 | G2: 4 | H2: 87.67 | I2: 是
A3: 2 | B3: 52003070011 | C3: 曾劲源 | D3: 522526****023616 | E3: 医务科医患关系管理岗 | F3: C07 | G3: 6 | H3: 86.00 | I3: 是
A4: 3 | B4: 52003110064 | C4: 王宇 | D4: 520181****011713 | E4: 医务科医患关系管理岗 | F4: C07 | G4: 1 | H4: 78.33
A5: 4 | B5: 52003070001 | C5: 马鹏成 | D5: 520181****250813 | E5: 医务科医患关系管理岗 | F5: C07 | G5: 3 | H5: 72.33
A6: 5 | B6: 52003070010 | C6: 杜睿 | D6: 522725****07612X | E6: 医务科医患关系管理岗 | F6: C07 | G6: 7 | H6: 67.33
A7: 6 | B7: 52003070006 | C7: 马飞 | D7: 520181****183318 | E7: 医务科医患关系管理岗 | F7: C07 | H7: 缺考
A8: 7 | B8: 52003070012 | C8: 陈祎玲 | D8: 522221****064924 | E8: 医务科医患关系管理岗 | F8: C07 | H8: 缺考

Sheet 护理部导诊员岗C08
A1: 序号 | B1: 报名序号 | C1: 姓名 | D1: 身份证号 | E1: 岗位名称 | F1: 岗位代码 | G1: 考场号 | H1: 抽签号 | I1: 面试原始成绩 | J1: 修正系数 | K1: 最终面试成绩 | L1: 是否进入资格复审
A2: 1 | B2: 52003080233 | C2: 申霖露 | D2: 522126****027023 | E2: 护理部导诊员 | F2: C08 | G2: =VLOOKUP(C:C,[1]汇总得分!$B:$D,3,FALSE) -> 第一考场 | H2: =VLOOKUP(C:C,[1]汇总得分!$B:$C,2,FALSE) -> 19 | I2: =VLOOKUP(C:C,[1]汇总得分!$E:$G,3,FALSE) -> 93.00 | J2: =VLOOKUP(C:C,[1]汇总得分!$E:$H,4,FALSE) -> 1.04 | K2: =VLOOKUP(C:C,[1]汇总得分!$E:$I,5,FALSE) -> 96.74 | L2: 是
A3: 2 | B3: 52003080186 | C3: 田盈盈 | D3: 520321****043869 | E3: 护理部导诊员 | F3: C08 | G3: =VLOOKUP(C:C,[1]汇总得分!$B:$D,3,FALSE) -> 第一考场 | H3: =VLOOKUP(C:C,[1]汇总得分!$B:$C,2,FALSE) -> 78 | I3: =VLOOKUP(C:C,[1]汇总得分!$E:$G,3,FALSE) -> 92.00 | J3: =VLOOKUP(C:C,[1]汇总得分!$E:$H,4,FALSE) -> 1.04 | K3: =VLOOKUP(C:C,[1]汇总得分!$E:$I,5,FALSE) -> 95.70 | L3: 是
A4: 3 | B4: 52003080304 | C4: 袁蒙 | D4: 522121****166227 | E4: 护理部导诊员 | F4: C08 | G4: =VLOOKUP(C:C,[1]汇总得分!$B:$D,3,FALSE) -> 第二考场 | H4: =VLOOKUP(C:C,[1]汇总得分!$B:$C,2,FALSE) -> 8 | I4: =VLOOKUP(C:C,[1]汇总得分!$E:$G,3,FALSE) -> 96.00 | J4: =VLOOKUP(C:C,[1]汇总得分!$E:$H,4,FALSE) -> 0.97 | K4: =VLOOKUP(C:C,[1]汇总得分!$E:$I,5,FALSE) -> 93.19 | L4: 是
A5: 4 | B5: 52003080115 | C5: 田畅业 | D5: 522226****260043 | E5: 护理部导诊员 | F5: C08 | G5: =VLOOKUP(C:C,[1]汇总得分!$B:$D,3,FALSE) -> 第一考场 | H5: =VLOOKUP(C:C,[1]汇总得分!$B:$C,2,FALSE) -> 4 | I5: =VLOOKUP(C:C,[1]汇总得分!$E:$G,3,FALSE) -> 89.00 | J5: =VLOOKUP(C:C,[1]汇总得分!$E:$H,4,FALSE) -> 1.04 | K5: =VLOOKUP(C:C,[1]汇总得分!$E:$I,5,FALSE) -> 92.58 | L5: 是
A6: 5 | B6: 52003080089 | C6: 李琪瑶 | D6: 520112****270021 | E6: 护理部导诊员 | F6: C08 | G6: =VLOOKUP(C:C,[1]汇总得分!$B:$D,3,FALSE) -> 第二考场 | H6: =VLOOKUP(C:C,[1]汇总得分!$B:$C,2,FALSE) -> 131 | I6: =VLOOKUP(C:C,[1]汇总得分!$E:$G,3,FALSE) -> 94.67 | J6: =VLOOKUP(C:C,[1]汇总得分!$E:$H,4,FALSE) -> 0.97 | K6: =VLOOKUP(C:C,[1]汇总得分!$E:$I,5,FALSE) -> 91.90 | L6: 是
A7: 6 | B7: 52003080031 | C7: 李明洁 | D7: 522422****033221 | E7: 护理部导诊员 | F7: C08 | G7: =VLOOKUP(C:C,[1]汇总得分!$B:$D,3,FALSE) -> 第二考场 | H7: =VLOOKUP(C:C,[1]汇总得分!$B:$C,2,FALSE) -> 33 | I7: =VLOOKUP(C:C,[1]汇总得分!$E:$G,3,FALSE) -> 94.00 | J7: =VLOOKUP(C:C,[1]汇总得分!$E:$H,4,FALSE) -> 0.97 | K7: =VLOOKUP(C:C,[1]汇总得分!$E:$I,5,FALSE) -> 91.25 | L7: 是
A8: 7 | B8: 52003080026 | C8: 罗江丽 | D8: 522225****023627 | E8: 护理部导诊员 | F8: C08 | G8: =VLOOKUP(C:C,[1]汇总得分!$B:$D,3,FALSE) -> 第一考场 | H8: =VLOOKUP(C:C,[1]汇总得分!$B:$C,2,FALSE) -> 38 | I8: =VLOOKUP(C:C,[1]汇总得分!$E:$G,3,FALSE) -> 87.33 | J8: =VLOOKUP(C:C,[1]汇总得分!$E:$H,4,FALSE) -> 1.04 | K8: =VLOOKUP(C:C,[1]汇总得分!$E:$I,5,FALSE) -> 90.84 | L8: 是
A9: 8 | B9: 52003080004 | C9: 付丽 | D9: 522127****092523 | E9: 护理部导诊员 | F9: C08 | G9: =VLOOKUP(C:C,[1]汇总得分!$B:$D,3,FALSE) -> 第一考场 | H9: =VLOOKUP(C:C,[1]汇总得分!$B:$C,2,FALSE) -> 109 | I9: =VLOOKUP(C:C,[1]汇总得分!$E:$G,3,FALSE) -> 87.00 | J9: =VLOOKUP(C:C,[1]汇总得分!$E:$H,4,FALSE) -> 1.04 | K9: =VLOOKUP(C:C,[1]汇总得分!$E:$I,5,FALSE) -> 90.50 | L9: 是
A10: 9 | B10: 52003080013 | C10: 陈佳兰 | D10: 522130****216024 | E10: 护理部导诊员 | F10: C08 | G10: =VLOOKUP(C:C,[1]汇总得分!$B:$D,3,FALSE) -> 第二考场 | H10: =VLOOKUP(C:C,[1]汇总得分!$B:$C,2,FALSE) -> 122 | I10: =VLOOKUP(C:C,[1]汇总得分!$E:$G,3,FALSE) -> 93.00 | J10: =VLOOKUP(C:C,[1]汇总得分!$E:$H,4,FALSE) -> 0.97 | K10: =VLOOKUP(C:C,[1]汇总得分!$E:$I,5,FALSE) -> 90.28 | L10: 是
A11: 10 | B11: 52003080054 | C11: 何喜婷 | D11: 522121****132641 | E11: 护理部导诊员 | F11: C08 | G11: =VLOOKUP(C:C,[1]汇总得分!$B:$D,3,FALSE) -> 第二考场 | H11: =VLOOKUP(C:C,[1]汇总得分!$B:$C,2,FALSE) -> 65 | I11: =VLOOKUP(C:C,[1]汇总得分!$E:$G,3,FALSE) -> 92.00 | J11: =VLOOKUP(C:C,[1]汇总得分!$E:$H,4,FALSE) -> 0.97 | K11: =VLOOKUP(C:C,[1]汇总得分!$E:$I,5,FALSE) -> 89.31 | L11: 是
A12: 11 | B12: 52003080150 | C12: 晏换 | D12: 522428****214446 | E12: 护理部导诊员 | F12: C08 | G12: =VLOOKUP(C:C,[1]汇总得分!$B:$D,3,FALSE) -> 第二考场 | H12: =VLOOKUP(C:C,[1]汇总得分!$B:$C,2,FALSE) -> 127 | I12: =VLOOKUP(C:C,[1]汇总得分!$E:$G,3,FALSE) -> 91.33 | J12: =VLOOKUP(C:C,[1]汇总得分!$E:$H,4,FALSE) -> 0.97 | K12: =VLOOKUP(C:C,[1]汇总得分!$E:$I,5,FALSE) -> 88.66 | L12: 是
A13: 12 | B13: 52003080008 | C13: 鲁莎 | D13: 532128****050389 | E13: 护理部导诊员 | F13: C08 | G13: =VLOOKUP(C:C,[1]汇总得分!$B:$D,3,FALSE) -> 第二考场 | H13: =VLOOKUP(C:C,[1]汇总得分!$B:$C,2,FALSE) -> 80 | I13: =VLOOKUP(C:C,[1]汇总得分!$E:$G,3,FALSE) -> 91.00 | J13: =VLOOKUP(C:C,[1]汇总得分!$E:$H,4,FALSE) -> 0.97 | K13: =VLOOKUP(C:C,[1]汇总得分!$E:$I,5,FALSE) -> 88.34 | L13: 是
A14: 13 | B14: 52003080148 | C14: 文萍 | D14: 522122****231827 | E14: 护理部导诊员 | F14: C08 | G14: =VLOOKUP(C:C,[1]汇总得分!$B:$D,3,FALSE) -> 第二考场 | H14: =VLOOKUP(C:C,[1]汇总得分!$B:$C,2,FALSE) -> 85 | I14: =VLOOKUP(C:C,[1]汇总得分!$E:$G,3,FALSE) -> 90.67 | J14: =VLOOKUP(C:C,[1]汇总得分!$E:$H,4,FALSE) -> 0.97 | K14: =VLOOKUP(C:C,[1]汇总得分!$E:$I,5,FALSE) -> 88.01 | L14: 是
A15: 14 | B15: 52003080018 | C15: 唐洁 | D15: 520112****201124 | E15: 护理部导诊员 | F15: C08 | G15: =VLOOKUP(C:C,[1]汇总得分!$B:$D,3,FALSE) -> 第二考场 | H15: =VLOOKUP(C:C,[1]汇总得分!$B:$C,2,FALSE) -> 135 | I15: =VLOOKUP(C:C,[1]汇总得分!$E:$G,3,FALSE) -> 90.67 | J15: =VLOOKUP(C:C,[1]汇总得分!$E:$H,4,FALSE) -> 0.97 | K15: =VLOOKUP(C:C,[1]汇总得分!$E:$I,5,FALSE) -> 88.01 | L15: 是
A16: 15 | B16: 52003080051 | C16: 王硕 | D16: 522130****107215 | E16: 护理部导诊员 | F16: C08 | G16: =VLOOKUP(C:C,[1]汇总得分!$B:$D,3,FALSE) -> 第二考场 | H16: =VLOOKUP(C:C,[1]汇总得分!$B:$C,2,FALSE) -> 104 | I16: =VLOOKUP(C:C,[1]汇总得分!$E:$G,3,FALSE) -> 90.33 | J16: =VLOOKUP(C:C,[1]汇总得分!$E:$H,4,FALSE) -> 0.97 | K16: =VLOOKUP(C:C,[1]汇总得分!$E:$I,5,FALSE) -> 87.69 | L16: 是
A17: 16 | B17: 52003080024 | C17: 李韩玥 | D17: 520121****073442 | E17: 护理部导诊员 | F17: C08 | G17: =VLOOKUP(C:C,[1]汇总得分!$B:$D,3,FALSE) -> 第二考场 | H17: =VLOOKUP(C:C,[1]汇总得分!$B:$C,2,FALSE) -> 76 | I17: =VLOOKUP(C:C,[1]汇总得分!$E:$G,3,FALSE) -> 88.67 | J17: =VLOOKUP(C:C,[1]汇总得分!$E:$H,4,FALSE) -> 0.97 | K17: =VLOOKUP(C:C,[1]汇总得分!$E:$I,5,FALSE) -> 86.07 | L17: 是
A18: 17 | B18: 52003080288 | C18: 金倩 | D18: 522122****081828 | E18: 护理部导诊员 | F18: C08 | G18: =VLOOKUP(C:C,[1]汇总得分!$B:$D,3,FALSE) -> 第二考场 | H18: =VLOOKUP(C:C,[1]汇总得分!$B:$C,2,FALSE) -> 112 | I18: =VLOOKUP(C:C,[1]汇总得分!$E:$G,3,FALSE) -> 87.33 | J18: =VLOOKUP(C:C,[1]汇总得分!$E:$H,4,FALSE) -> 0.97 | K18: =VLOOKUP(C:C,[1]汇总得分!$E:$I,5,FALSE) -> 84.78 | L18: 是
A19: 18 | B19: 52003080276 | C19: 翟崧堉 | D19: 522401****090240 | E19: 护理部导诊员 | F19: C08 | G19: =VLOOKUP(C:C,[1]汇总得分!$B:$D,3,FALSE) -> 第二考场 | H19: =VLOOKUP(C:C,[1]汇总得分!$B:$C,2,FALSE) -> 42 | I19: =VLOOKUP(C:C,[1]汇总得分!$E:$G,3,FALSE) -> 86.33 | J19: =VLOOKUP(C:C,[1]汇总得分!$E:$H,4,FALSE) -> 0.97 | K19: =VLOOKUP(C:C,[1]汇总得分!$E:$I,5,FALSE) -> 83.81 | L19: 是
A20: 19 | B20: 52003080314 | C20: 龙优情 | D20: 522229****104024 | E20: 护理部导诊员 | F20: C08 | G20: =VLOOKUP(C:C,[1]汇总得分!$B:$D,3,FALSE) -> 第一考场 | H20: =VLOOKUP(C:C,[1]汇总得分!$B:$C,2,FALSE) -> 6 | I20: =VLOOKUP(C:C,[1]汇总得分!$E:$G,3,FALSE) -> 80.00 | J20: =VLOOKUP(C:C,[1]汇总得分!$E:$H,4,FALSE) -> 1.04 | K20: =VLOOKUP(C:C,[1]汇总得分!$E:$I,5,FALSE) -> 83.22
A21: 20 | B21: 52003080123 | C21: 朱雨梅 | D21: 522425****105422 | E21: 护理部导诊员 | F21: C08 | G21: =VLOOKUP(C:C,[1]汇总得分!$B:$D,3,FALSE) -> 第二考场 | H21: =VLOOKUP(C:C,[1]汇总得分!$B:$C,2,FALSE) -> 120 | I21: =VLOOKUP(C:C,[1]汇总得分!$E:$G,3,FALSE) -> 85.00 | J21: =VLOOKUP(C:C,[1]汇总得分!$E:$H,4,FALSE) -> 0.97 | K21: =VLOOKUP(C:C,[1]汇总得分!$E:$I,5,FALSE) -> 82.51
A22: 21 | B22: 52003080098 | C22: 龙姣 | D22: 522426****108269 | E22: 护理部导诊员 | F22: C08 | G22: =VLOOKUP(C:C,[1]汇总得分!$B:$D,3,FALSE) -> 第二考场 | H22: =VLOOKUP(C:C,[1]汇总得分!$B:$C,2,FALSE) -> 44 | I22: =VLOOKUP(C:C,[1]汇总得分!$E:$G,3,FALSE) -> 78.00 | J22: =VLOOKUP(C:C,[1]汇总得分!$E:$H,4,FALSE) -> 0.97 | K22: =VLOOKUP(C:C,[1]汇总得分!$E:$I,5,FALSE) -> 75.72
A23: 22 | B23: 52003080143 | C23: 李静 | D23: 522128****290044 | E23: 护理部导诊员 | F23: C08 | G23: =VLOOKUP(C:C,[1]汇总得分!$B:$D,3,FALSE) -> 第二考场 | H23: =VLOOKUP(C:C,[1]汇总得分!$B:$C,2,FALSE) -> 74 | I23: =VLOOKUP(C:C,[1]汇总得分!$E:$G,3,FALSE) -> 77.00 | J23: =VLOOKUP(C:C,[1]汇总得分!$E:$H,4,FALSE) -> 0.97 | K23: =VLOOKUP(C:C,[1]汇总得分!$E:$I,5,FALSE) -> 74.75
A24: 23 | B24: 52003080009 | C24: 杨杞 | D24: 522223****110043 | E24: 护理部导诊员 | F24: C08 | G24: =VLOOKUP(C:C,[1]汇总得分!$B:$D,3,FALSE) -> 第一考场 | H24: =VLOOKUP(C:C,[1]汇总得分!$B:$C,2,FALSE) -> 71 | I24: =VLOOKUP(C:C,[1]汇总得分!$E:$G,3,FALSE) -> 71.67 | J24: =VLOOKUP(C:C,[1]汇总得分!$E:$H,4,FALSE) -> 1.04 | K24: =VLOOKUP(C:C,[1]汇总得分!$E:$I,5,FALSE) -> 74.55
A25: 24 | B25: 52003080212 | C25: 刘艳琼 | D25: 522624****280044 | E25: 护理部导诊员 | F25: C08 | G25: =VLOOKUP(C:C,[1]汇总得分!$B:$D,3,FALSE) -> 第一考场 | H25: =VLOOKUP(C:C,[1]汇总得分!$B:$C,2,FALSE) -> 26 | I25: =VLOOKUP(C:C,[1]汇总得分!$E:$G,3,FALSE) -> 70.67 | J25: =VLOOKUP(C:C,[1]汇总得分!$E:$H,4,FALSE) -> 1.04 | K25: =VLOOKUP(C:C,[1]汇总得分!$E:$I,5,FALSE) -> 73.51
A26: 25 | B26: 52003080270 | C26: 龙腾森 | D26: 522628****203014 | E26: 护理部导诊员 | F26: C08 | G26: =VLOOKUP(C:C,[1]汇总得分!$B:$D,3,FALSE) -> 第一考场 | H26: =VLOOKUP(C:C,[1]汇总得分!$B:$C,2,FALSE) -> 46 | I26: =VLOOKUP(C:C,[1]汇总得分!$E:$G,3,FALSE) -> 70.67 | J26: =VLOOKUP(C:C,[1]汇总得分!$E:$H,4,FALSE) -> 1.04 | K26: =VLOOKUP(C:C,[1]汇总得分!$E:$I,5,FALSE) -> 73.51
A27: 26 | B27: 52003080216 | C27: 李玉兰 | D27: 522423****170423 | E27: 护理部导诊员 | F27: C08 | G27: =VLOOKUP(C:C,[1]汇总得分!$B:$D,3,FALSE) -> 第一考场 | H27: =VLOOKUP(C:C,[1]汇总得分!$B:$C,2,FALSE) -> 28 | I27: =VLOOKUP(C:C,[1]汇总得分!$E:$G,3,FALSE) -> 70.67 | J27: =VLOOKUP(C:C,[1]汇总得分!$E:$H,4,FALSE) -> 1.04 | K27: =VLOOKUP(C:C,[1]汇总得分!$E:$I,5,FALSE) -> 73.51
A28: 27 | B28: 52003080221 | C28: 张正敏 | D28: 522121****230441 | E28: 护理部导诊员 | F28: C08 | G28: =VLOOKUP(C:C,[1]汇总得分!$B:$D,3,FALSE) -> 第一考场 | H28: =VLOOKUP(C:C,[1]汇总得分!$B:$C,2,FALSE) -> 58 | I28: =VLOOKUP(C:C,[1]汇总得分!$E:$G,3,FALSE) -> 70.33 | J28: =VLOOKUP(C:C,[1]汇总得分!$E:$H,4,FALSE) -> 1.04 | K28: =VLOOKUP(C:C,[1]汇总得分!$E:$I,5,FALSE) -> 73.16
A29: 28 | B29: 52003080317 | C29: 龙沛伊 | D29: 431302****024105 | E29: 护理部导诊员 | F29: C08 | G29: =VLOOKUP(C:C,[1]汇总得分!$B:$D,3,FALSE) -> 第一考场 | H29: =VLOOKUP(C:C,[1]汇总得分!$B:$C,2,FALSE) -> 10 | I29: =VLOOKUP(C:C,[1]汇总得分!$E:$G,3,FALSE) -> 70.33 | J29: =VLOOKUP(C:C,[1]汇总得分!$E:$H,4,FALSE) -> 1.04 | K29: =VLOOKUP(C:C,[1]汇总得分!$E:$I,5,FALSE) -> 73.16
A30: 29 | B30: 52003080284 | C30: 宋卓琼 | D30: 522228****24044X | E30: 护理部导诊员 | F30: C08 | G30: =VLOOKUP(C:C,[1]汇总得分!$B:$D,3,FALSE) -> 第一考场 | H30: =VLOOKUP(C:C,[1]汇总得分!$B:$C,2,FALSE) -> 27 | I30: =VLOOKUP(C:C,[1]汇总得分!$E:$G,3,FALSE) -> 70.33 | J30: =VLOOKUP(C:C,[1]汇总得分!$E:$H,4,FALSE) -> 1.04 | K30: =VLOOKUP(C:C,[1]汇总得分!$E:$I,5,FALSE) -> 73.16
A31: 30 | B31: 52003080075 | C31: 况龙涛 | D31: 522128****040076 | E31: 护理部导诊员 | F31: C08 | G31: =VLOOKUP(C:C,[1]汇总得分!$B:$D,3,FALSE) -> 第一考场 | H31: =VLOOKUP(C:C,[1]汇总得分!$B:$C,2,FALSE) -> 5 | I31: =VLOOKUP(C:C,[1]汇总得分!$E:$G,3,FALSE) -> 70.33 | J31: =VLOOKUP(C:C,[1]汇总得分!$E:$H,4,FALSE) -> 1.04 | K31: =VLOOKUP(C:C,[1]汇总得分!$E:$I,5,FALSE) -> 73.16
A32: 31 | B32: 52003080234 | C32: 黄仕美 | D32: 522727****123648 | E32: 护理部导诊员 | F32: C08 | G32: =VLOOKUP(C:C,[1]汇总得分!$B:$D,3,FALSE) -> 第一考场 | H32: =VLOOKUP(C:C,[1]汇总得分!$B:$C,2,FALSE) -> 105 | I32: =VLOOKUP(C:C,[1]汇总得分!$E:$G,3,FALSE) -> 70.00 | J32: =VLOOKUP(C:C,[1]汇总得分!$E:$H,4,FALSE) -> 1.04 | K32: =VLOOKUP(C:C,[1]汇总得分!$E:$I,5,FALSE) -> 72.81
A33: 32 | B33: 52003080092 | C33: 徐小素 | D33: 522132****15322X | E33: 护理部导诊员 | F33: C08 | G33: =VLOOKUP(C:C,[1]汇总得分!$B:$D,3,FALSE) -> 第一考场 | H33: =VLOOKUP(C:C,[1]汇总得分!$B:$C,2,FALSE) -> 94 | I33: =VLOOKUP(C:C,[1]汇总得分!$E:$G,3,FALSE) -> 70.00 | J33: =VLOOKUP(C:C,[1]汇总得分!$E:$H,4,FALSE) -> 1.04 | K33: =VLOOKUP(C:C,[1]汇总得分!$E:$I,5,FALSE) -> 72.81
A34: 33 | B34: 52003080014 | C34: 杜芳 | D34: 522224****08006X | E34: 护理部导诊员 | F34: C08 | G34: =VLOOKUP(C:C,[1]汇总得分!$B:$D,3,FALSE) -> 第一考场 | H34: =VLOOKUP(C:C,[1]汇总得分!$B:$C,2,FALSE) -> 37 | I34: =VLOOKUP(C:C,[1]汇总得分!$E:$G,3,FALSE) -> 70.00 | J34: =VLOOKUP(C:C,[1]汇总得分!$E:$H,4,FALSE) -> 1.04 | K34: =VLOOKUP(C:C,[1]汇总得分!$E:$I,5,FALSE) -> 72.81
A35: 34 | B35: 52003080200 | C35: 苏丽 | D35: 522121****05262X | E35: 护理部导诊员 | F35: C08 | G35: =VLOOKUP(C:C,[1]汇总得分!$B:$D,3,FALSE) -> 第二考场 | H35: =VLOOKUP(C:C,[1]汇总得分!$B:$C,2,FALSE) -> 94 | I35: =VLOOKUP(C:C,[1]汇总得分!$E:$G,3,FALSE) -> 74.67 | J35: =VLOOKUP(C:C,[1]汇总得分!$E:$H,4,FALSE) -> 0.97 | K35: =VLOOKUP(C:C,[1]汇总得分!$E:$I,5,FALSE) -> 72.48
A36: 35 | B36: 52003080085 | C36: 高梦颜 | D36: 522401****21044X | E36: 护理部导诊员 | F36: C08 | G36: =VLOOKUP(C:C,[1]汇总得分!$B:$D,3,FALSE) -> 第一考场 | H36: =VLOOKUP(C:C,[1]汇总得分!$B:$C,2,FALSE) -> 21 | I36: =VLOOKUP(C:C,[1]汇总得分!$E:$G,3,FALSE) -> 69.67 | J36: =VLOOKUP(C:C,[1]汇总得分!$E:$H,4,FALSE) -> 1.04 | K36: =VLOOKUP(C:C,[1]汇总得分!$E:$I,5,FALSE) -> 72.47
A37: 36 | B37: 52003080262 | C37: 肖灿 | D37: 522427****25008X | E37: 护理部导诊员 | F37: C08 | G37: =VLOOKUP(C:C,[1]汇总得分!$B:$D,3,FALSE) -> 第一考场 | H37: =VLOOKUP(C:C,[1]汇总得分!$B:$C,2,FALSE) -> 29 | I37: =VLOOKUP(C:C,[1]汇总得分!$E:$G,3,FALSE) -> 69.67 | J37: =VLOOKUP(C:C,[1]汇总得分!$E:$H,4,FALSE) -> 1.04 | K37: =VLOOKUP(C:C,[1]汇总得分!$E:$I,5,FALSE) -> 72.47
A38: 37 | B38: 52003080293 | C38: 杨苹 | D38: 522629****150028 | E38: 护理部导诊员 | F38: C08 | G38: =VLOOKUP(C:C,[1]汇总得分!$B:$D,3,FALSE) -> 第一考场 | H38: =VLOOKUP(C:C,[1]汇总得分!$B:$C,2,FALSE) -> 72 | I38: =VLOOKUP(C:C,[1]汇总得分!$E:$G,3,FALSE) -> 69.67 | J38: =VLOOKUP(C:C,[1]汇总得分!$E:$H,4,FALSE) -> 1.04 | K38: =VLOOKUP(C:C,[1]汇总得分!$E:$I,5,FALSE) -> 72.47
A39: 38 | B39: 52003080179 | C39: 袁露 | D39: 522228****080044 | E39: 护理部导诊员 | F39: C08 | G39: =VLOOKUP(C:C,[1]汇总得分!$B:$D,3,FALSE) -> 第一考场 | H39: =VLOOKUP(C:C,[1]汇总得分!$B:$C,2,FALSE) -> 43 | I39: =VLOOKUP(C:C,[1]汇总得分!$E:$G,3,FALSE) -> 69.67 | J39: =VLOOKUP(C:C,[1]汇总得分!$E:$H,4,FALSE) -> 1.04 | K39: =VLOOKUP(C:C,[1]汇总得分!$E:$I,5,FALSE) -> 72.47
A40: 39 | B40: 52003080190 | C40: 田瑶 | D40: 522228****130420 | E40: 护理部导诊员 | F40: C08 | G40: =VLOOKUP(C:C,[1]汇总得分!$B:$D,3,FALSE) -> 第一考场 | H40: =VLOOKUP(C:C,[1]汇总得分!$B:$C,2,FALSE) -> 103 | I40: =VLOOKUP(C:C,[1]汇总得分!$E:$G,3,FALSE) -> 69.67 | J40: =VLOOKUP(C:C,[1]汇总得分!$E:$H,4,FALSE) -> 1.04 | K40: =VLOOKUP(C:C,[1]汇总得分!$E:$I,5,FALSE) -> 72.47
A41: 40 | B41: 52003080134 | C41: 朱小月 | D41: 522424****01024X | E41: 护理部导诊员 | F41: C08 | G41: =VLOOKUP(C:C,[1]汇总得分!$B:$D,3,FALSE) -> 第二考场 | H41: =VLOOKUP(C:C,[1]汇总得分!$B:$C,2,FALSE) -> 103 | I41: =VLOOKUP(C:C,[1]汇总得分!$E:$G,3,FALSE) -> 74.33 | J41: =VLOOKUP(C:C,[1]汇总得分!$E:$H,4,FALSE) -> 0.97 | K41: =VLOOKUP(C:C,[1]汇总得分!$E:$I,5,FALSE) -> 72.16
A42: 41 | B42: 52003080095 | C42: 薛江萍 | D42: 522127****17202X | E42: 护理部导诊员 | F42: C08 | G42: =VLOOKUP(C:C,[1]汇总得分!$B:$D,3,FALSE) -> 第一考场 | H42: =VLOOKUP(C:C,[1]汇总得分!$B:$C,2,FALSE) -> 57 | I42: =VLOOKUP(C:C,[1]汇总得分!$E:$G,3,FALSE) -> 69.33 | J42: =VLOOKUP(C:C,[1]汇总得分!$E:$H,4,FALSE) -> 1.04 | K42: =VLOOKUP(C:C,[1]汇总得分!$E:$I,5,FALSE) -> 72.12
A43: 42 | B43: 52003080235 | C43: 张炜鑫 | D43: 522628****220012 | E43: 护理部导诊员 | F43: C08 | G43: =VLOOKUP(C:C,[1]汇总得分!$B:$D,3,FALSE) -> 第一考场 | H43: =VLOOKUP(C:C,[1]汇总得分!$B:$C,2,FALSE) -> 16 | I43: =VLOOKUP(C:C,[1]汇总得分!$E:$G,3,FALSE) -> 69.33 | J43: =VLOOKUP(C:C,[1]汇总得分!$E:$H,4,FALSE) -> 1.04 | K43: =VLOOKUP(C:C,[1]汇总得分!$E:$I,5,FALSE) -> 72.12
A44: 43 | B44: 52003080125 | C44: 涂雪徽 | D44: 522125****212540 | E44: 护理部导诊员 | F44: C08 | G44: =VLOOKUP(C:C,[1]汇总得分!$B:$D,3,FALSE) -> 第一考场 | H44: =VLOOKUP(C:C,[1]汇总得分!$B:$C,2,FALSE) -> 64 | I44: =VLOOKUP(C:C,[1]汇总得分!$E:$G,3,FALSE) -> 69.33 | J44: =VLOOKUP(C:C,[1]汇总得分!$E:$H,4,FALSE) -> 1.04 | K44: =VLOOKUP(C:C,[1]汇总得分!$E:$I,5,FALSE) -> 72.12
A45: 44 | B45: 52003080103 | C45: 田睿 | D45: 522128****175627 | E45: 护理部导诊员 | F45: C08 | G45: =VLOOKUP(C:C,[1]汇总得分!$B:$D,3,FALSE) -> 第二考场 | H45: =VLOOKUP(C:C,[1]汇总得分!$B:$C,2,FALSE) -> 109 | I45: =VLOOKUP(C:C,[1]汇总得分!$E:$G,3,FALSE) -> 74.00 | J45: =VLOOKUP(C:C,[1]汇总得分!$E:$H,4,FALSE) -> 0.97 | K45: =VLOOKUP(C:C,[1]汇总得分!$E:$I,5,FALSE) -> 71.83
A46: 45 | B46: 52003080194 | C46: 袁蝶 | D46: 522425****258440 | E46: 护理部导诊员 | F46: C08 | G46: =VLOOKUP(C:C,[1]汇总得分!$B:$D,3,FALSE) -> 第二考场 | H46: =VLOOKUP(C:C,[1]汇总得分!$B:$C,2,FALSE) -> 93 | I46: =VLOOKUP(C:C,[1]汇总得分!$E:$G,3,FALSE) -> 74.00 | J46: =VLOOKUP(C:C,[1]汇总得分!$E:$H,4,FALSE) -> 0.97 | K46: =VLOOKUP(C:C,[1]汇总得分!$E:$I,5,FALSE) -> 71.83
A47: 46 | B47: 52003080203 | C47: 喻怀扬 | D47: 522702****280066 | E47: 护理部导诊员 | F47: C08 | G47: =VLOOKUP(C:C,[1]汇总得分!$B:$D,3,FALSE) -> 第一考场 | H47: =VLOOKUP(C:C,[1]汇总得分!$B:$C,2,FALSE) -> 91 | I47: =VLOOKUP(C:C,[1]汇总得分!$E:$G,3,FALSE) -> 69.00 | J47: =VLOOKUP(C:C,[1]汇总得分!$E:$H,4,FALSE) -> 1.04 | K47: =VLOOKUP(C:C,[1]汇总得分!$E:$I,5,FALSE) -> 71.77
A48: 47 | B48: 52003080025 | C48: 余丹丹 | D48: 522128****061029 | E48: 护理部导诊员 | F48: C08 | G48: =VLOOKUP(C:C,[1]汇总得分!$B:$D,3,FALSE) -> 第一考场 | H48: =VLOOKUP(C:C,[1]汇总得分!$B:$C,2,FALSE) -> 32 | I48: =VLOOKUP(C:C,[1]汇总得分!$E:$G,3,FALSE) -> 69.00 | J48: =VLOOKUP(C:C,[1]汇总得分!$E:$H,4,FALSE) -> 1.04 | K48: =VLOOKUP(C:C,[1]汇总得分!$E:$I,5,FALSE) -> 71.77
A49: 48 | B49: 52003080059 | C49: 申敏敏 | D49: 522227****087682 | E49: 护理部导诊员 | F49: C08 | G49: =VLOOKUP(C:C,[1]汇总得分!$B:$D,3,FALSE) -> 第一考场 | H49: =VLOOKUP(C:C,[1]汇总得分!$B:$C,2,FALSE) -> 49 | I49: =VLOOKUP(C:C,[1]汇总得分!$E:$G,3,FALSE) -> 69.00 | J49: =VLOOKUP(C:C,[1]汇总得分!$E:$H,4,FALSE) -> 1.04 | K49: =VLOOKUP(C:C,[1]汇总得分!$E:$I,5,FALSE) -> 71.77
A50: 49 | B50: 52003080061 | C50: 董华秀 | D50: 520202****201629 | E50: 护理部导诊员 | F50: C08 | G50: =VLOOKUP(C:C,[1]汇总得分!$B:$D,3,FALSE) -> 第一考场 | H50: =VLOOKUP(C:C,[1]汇总得分!$B:$C,2,FALSE) -> 129 | I50: =VLOOKUP(C:C,[1]汇总得分!$E:$G,3,FALSE) -> 69.00 | J50: =VLOOKUP(C:C,[1]汇总得分!$E:$H,4,FALSE) -> 1.04 | K50: =VLOOKUP(C:C,[1]汇总得分!$E:$I,5,FALSE) -> 71.77
A51: 50 | B51: 52003080073 | C51: 何义 | D51: 522227****224444 | E51: 护理部导诊员 | F51: C08 | G51: =VLOOKUP(C:C,[1]汇总得分!$B:$D,3,FALSE) -> 第二考场 | H51: =VLOOKUP(C:C,[1]汇总得分!$B:$C,2,FALSE) -> 92 | I51: =VLOOKUP(C:C,[1]汇总得分!$E:$G,3,FALSE) -> 73.67 | J51: =VLOOKUP(C:C,[1]汇总得分!$E:$H,4,FALSE) -> 0.97 | K51: =VLOOKUP(C:C,[1]汇总得分!$E:$I,5,FALSE) -> 71.51
A52: 51 | B52: 52003080012 | C52: 王荣美 | D52: 522425****013626 | E52: 护理部导诊员 | F52: C08 | G52: =VLOOKUP(C:C,[1]汇总得分!$B:$D,3,FALSE) -> 第一考场 | H52: =VLOOKUP(C:C,[1]汇总得分!$B:$C,2,FALSE) -> 40 | I52: =VLOOKUP(C:C,[1]汇总得分!$E:$G,3,FALSE) -> 68.67 | J52: =VLOOKUP(C:C,[1]汇总得分!$E:$H,4,FALSE) -> 1.04 | K52: =VLOOKUP(C:C,[1]汇总得分!$E:$I,5,FALSE) -> 71.43
A53: 52 | B53: 52003080204 | C53: 陈文施 | D53: 520221****173327 | E53: 护理部导诊员 | F53: C08 | G53: =VLOOKUP(C:C,[1]汇总得分!$B:$D,3,FALSE) -> 第一考场 | H53: =VLOOKUP(C:C,[1]汇总得分!$B:$C,2,FALSE) -> 134 | I53: =VLOOKUP(C:C,[1]汇总得分!$E:$G,3,FALSE) -> 68.67 | J53: =VLOOKUP(C:C,[1]汇总得分!$E:$H,4,FALSE) -> 1.04 | K53: =VLOOKUP(C:C,[1]汇总得分!$E:$I,5,FALSE) -> 71.43
A54: 53 | B54: 52003080268 | C54: 孙瑷 | D54: 522401****261520 | E54: 护理部导诊员 | F54: C08 | G54: =VLOOKUP(C:C,[1]汇总得分!$B:$D,3,FALSE) -> 第一考场 | H54: =VLOOKUP(C:C,[1]汇总得分!$B:$C,2,FALSE) -> 113 | I54: =VLOOKUP(C:C,[1]汇总得分!$E:$G,3,FALSE) -> 68.67 | J54: =VLOOKUP(C:C,[1]汇总得分!$E:$H,4,FALSE) -> 1.04 | K54: =VLOOKUP(C:C,[1]汇总得分!$E:$I,5,FALSE) -> 71.43
A55: 54 | B55: 52003080136 | C55: 张云雪 | D55: 522426****104424 | E55: 护理部导诊员 | F55: C08 | G55: =VLOOKUP(C:C,[1]汇总得分!$B:$D,3,FALSE) -> 第一考场 | H55: =VLOOKUP(C:C,[1]汇总得分!$B:$C,2,FALSE) -> 130 | I55: =VLOOKUP(C:C,[1]汇总得分!$E:$G,3,FALSE) -> 68.67 | J55: =VLOOKUP(C:C,[1]汇总得分!$E:$H,4,FALSE) -> 1.04 | K55: =VLOOKUP(C:C,[1]汇总得分!$E:$I,5,FALSE) -> 71.43
A56: 55 | B56: 52003080145 | C56: 袁花蕾 | D56: 522132****253823 | E56: 护理部导诊员 | F56: C08 | G56: =VLOOKUP(C:C,[1]汇总得分!$B:$D,3,FALSE) -> 第二考场 | H56: =VLOOKUP(C:C,[1]汇总得分!$B:$C,2,FALSE) -> 84 | I56: =VLOOKUP(C:C,[1]汇总得分!$E:$G,3,FALSE) -> 73.33 | J56: =VLOOKUP(C:C,[1]汇总得分!$E:$H,4,FALSE) -> 0.97 | K56: =VLOOKUP(C:C,[1]汇总得分!$E:$I,5,FALSE) -> 71.19
A57: 56 | B57: 52003080077 | C57: 李安婷 | D57: 522727****213629 | E57: 护理部导诊员 | F57: C08 | G57: =VLOOKUP(C:C,[1]汇总得分!$B:$D,3,FALSE) -> 第二考场 | H57: =VLOOKUP(C:C,[1]汇总得分!$B:$C,2,FALSE) -> 28 | I57: =VLOOKUP(C:C,[1]汇总得分!$E:$G,3,FALSE) -> 73.00 | J57: =VLOOKUP(C:C,[1]汇总得分!$E:$H,4,FALSE) -> 0.97 | K57: =VLOOKUP(C:C,[1]汇总得分!$E:$I,5,FALSE) -> 70.86
A58: 57 | B58: 52003080111 | C58: 陈文 | D58: 522425****151007 | E58: 护理部导诊员 | F58: C08 | G58: =VLOOKUP(C:C,[1]汇总得分!$B:$D,3,FALSE) -> 第一考场 | H58: =VLOOKUP(C:C,[1]汇总得分!$B:$C,2,FALSE) -> 83 | I58: =VLOOKUP(C:C,[1]汇总得分!$E:$G,3,FALSE) -> 68.00 | J58: =VLOOKUP(C:C,[1]汇总得分!$E:$H,4,FALSE) -> 1.04 | K58: =VLOOKUP(C:C,[1]汇总得分!$E:$I,5,FALSE) -> 70.73
A59: 58 | B59: 52003080169 | C59: 母玉群 | D59: 522427****043429 | E59: 护理部导诊员 | F59: C08 | G59: =VLOOKUP(C:C,[1]汇总得分!$B:$D,3,FALSE) -> 第二考场 | H59: =VLOOKUP(C:C,[1]汇总得分!$B:$C,2,FALSE) -> 81 | I59: =VLOOKUP(C:C,[1]汇总得分!$E:$G,3,FALSE) -> 72.67 | J59: =VLOOKUP(C:C,[1]汇总得分!$E:$H,4,FALSE) -> 0.97 | K59: =VLOOKUP(C:C,[1]汇总得分!$E:$I,5,FALSE) -> 70.54
A60: 59 | B60: 52003080099 | C60: 徐岗 | D60: 522126****040119 | E60: 护理部导诊员 | F60: C08 | G60: =VLOOKUP(C:C,[1]汇总得分!$B:$D,3,FALSE) -> 第二考场 | H60: =VLOOKUP(C:C,[1]汇总得分!$B:$C,2,FALSE) -> 100 | I60: =VLOOKUP(C:C,[1]汇总得分!$E:$G,3,FALSE) -> 72.67 | J60: =VLOOKUP(C:C,[1]汇总得分!$E:$H,4,FALSE) -> 0.97 | K60: =VLOOKUP(C:C,[1]汇总得分!$E:$I,5,FALSE) -> 70.54
A61: 60 | B61: 52003080069 | C61: 刘娜 | D61: 530381****060928 | E61: 护理部导诊员 | F61: C08 | G61: =VLOOKUP(C:C,[1]汇总得分!$B:$D,3,FALSE) -> 第二考场 | H61: =VLOOKUP(C:C,[1]汇总得分!$B:$C,2,FALSE) -> 29 | I61: =VLOOKUP(C:C,[1]汇总得分!$E:$G,3,FALSE) -> 72.67 | J61: =VLOOKUP(C:C,[1]汇总得分!$E:$H,4,FALSE) -> 0.97 | K61: =VLOOKUP(C:C,[1]汇总得分!$E:$I,5,FALSE) -> 70.54
A62: 61 | B62: 52003080005 | C62: 杨成成 | D62: 522424****100211 | E62: 护理部导诊员 | F62: C08 | G62: =VLOOKUP(C:C,[1]汇总得分!$B:$D,3,FALSE) -> 第二考场 | H62: =VLOOKUP(C:C,[1]汇总得分!$B:$C,2,FALSE) -> 19 | I62: =VLOOKUP(C:C,[1]汇总得分!$E:$G,3,FALSE) -> 72.67 | J62: =VLOOKUP(C:C,[1]汇总得分!$E:$H,4,FALSE) -> 0.97 | K62: =VLOOKUP(C:C,[1]汇总得分!$E:$I,5,FALSE) -> 70.54
A63: 62 | B63: 52003080029 | C63: 徐茂程 | D63: 520121****170015 | E63: 护理部导诊员 | F63: C08 | G63: =VLOOKUP(C:C,[1]汇总得分!$B:$D,3,FALSE) -> 第二考场 | H63: =VLOOKUP(C:C,[1]汇总得分!$B:$C,2,FALSE) -> 102 | I63: =VLOOKUP(C:C,[1]汇总得分!$E:$G,3,FALSE) -> 72.67 | J63: =VLOOKUP(C:C,[1]汇总得分!$E:$H,4,FALSE) -> 0.97 | K63: =VLOOKUP(C:C,[1]汇总得分!$E:$I,5,FALSE) -> 70.54
A64: 63 | B64: 52003080030 | C64: 杨国琴 | D64: 522121****145827 | E64: 护理部导诊员 | F64: C08 | G64: =VLOOKUP(C:C,[1]汇总得分!$B:$D,3,FALSE) -> 第二考场 | H64: =VLOOKUP(C:C,[1]汇总得分!$B:$C,2,FALSE) -> 11 | I64: =VLOOKUP(C:C,[1]汇总得分!$E:$G,3,FALSE) -> 72.67 | J64: =VLOOKUP(C:C,[1]汇总得分!$E:$H,4,FALSE) -> 0.97 | K64: =VLOOKUP(C:C,[1]汇总得分!$E:$I,5,FALSE) -> 70.54
A65: 64 | B65: 52003080222 | C65: 杨茂田 | D65: 522427****046244 | E65: 护理部导诊员 | F65: C08 | G65: =VLOOKUP(C:C,[1]汇总得分!$B:$D,3,FALSE) -> 第一考场 | H65: =VLOOKUP(C:C,[1]汇总得分!$B:$C,2,FALSE) -> 84 | I65: =VLOOKUP(C:C,[1]汇总得分!$E:$G,3,FALSE) -> 67.67 | J65: =VLOOKUP(C:C,[1]汇总得分!$E:$H,4,FALSE) -> 1.04 | K65: =VLOOKUP(C:C,[1]汇总得分!$E:$I,5,FALSE) -> 70.39
A66: 65 | B66: 52003080313 | C66: 李润 | D66: 522724****137227 | E66: 护理部导诊员 | F66: C08 | G66: =VLOOKUP(C:C,[1]汇总得分!$B:$D,3,FALSE) -> 第一考场 | H66: =VLOOKUP(C:C,[1]汇总得分!$B:$C,2,FALSE) -> 81 | I66: =VLOOKUP(C:C,[1]汇总得分!$E:$G,3,FALSE) -> 67.67 | J66: =VLOOKUP(C:C,[1]汇总得分!$E:$H,4,FALSE) -> 1.04 | K66: =VLOOKUP(C:C,[1]汇总得分!$E:$I,5,FALSE) -> 70.39
A67: 66 | B67: 52003080064 | C67: 向碧伟 | D67: 522121****055022 | E67: 护理部导诊员 | F67: C08 | G67: =VLOOKUP(C:C,[1]汇总得分!$B:$D,3,FALSE) -> 第二考场 | H67: =VLOOKUP(C:C,[1]汇总得分!$B:$C,2,FALSE) -> 15 | I67: =VLOOKUP(C:C,[1]汇总得分!$E:$G,3,FALSE) -> 72.33 | J67: =VLOOKUP(C:C,[1]汇总得分!$E:$H,4,FALSE) -> 0.97 | K67: =VLOOKUP(C:C,[1]汇总得分!$E:$I,5,FALSE) -> 70.22
A68: 67 | B68: 52003080065 | C68: 李淼 | D68: 522723****090217 | E68: 护理部导诊员 | F68: C08 | G68: =VLOOKUP(C:C,[1]汇总得分!$B:$D,3,FALSE) -> 第二考场 | H68: =VLOOKUP(C:C,[1]汇总得分!$B:$C,2,FALSE) -> 129 | I68: =VLOOKUP(C:C,[1]汇总得分!$E:$G,3,FALSE) -> 72.33 | J68: =VLOOKUP(C:C,[1]汇总得分!$E:$H,4,FALSE) -> 0.97 | K68: =VLOOKUP(C:C,[1]汇总得分!$E:$I,5,FALSE) -> 70.22
A69: 68 | B69: 52003080079 | C69: 潘倩 | D69: 522123****288622 | E69: 护理部导诊员 | F69: C08 | G69: =VLOOKUP(C:C,[1]汇总得分!$B:$D,3,FALSE) -> 第一考场 | H69: =VLOOKUP(C:C,[1]汇总得分!$B:$C,2,FALSE) -> 115 | I69: =VLOOKUP(C:C,[1]汇总得分!$E:$G,3,FALSE) -> 67.33 | J69: =VLOOKUP(C:C,[1]汇总得分!$E:$H,4,FALSE) -> 1.04 | K69: =VLOOKUP(C:C,[1]汇总得分!$E:$I,5,FALSE) -> 70.04
A70: 69 | B70: 52003080101 | C70: 龙清泓 | D70: 522731****236862 | E70: 护理部导诊员 | F70: C08 | G70: =VLOOKUP(C:C,[1]汇总得分!$B:$D,3,FALSE) -> 第一考场 | H70: =VLOOKUP(C:C,[1]汇总得分!$B:$C,2,FALSE) -> 60 | I70: =VLOOKUP(C:C,[1]汇总得分!$E:$G,3,FALSE) -> 67.33 | J70: =VLOOKUP(C:C,[1]汇总得分!$E:$H,4,FALSE) -> 1.04 | K70: =VLOOKUP(C:C,[1]汇总得分!$E:$I,5,FALSE) -> 70.04
A71: 70 | B71: 52003080141 | C71: 蒋雪傲 | D71: 520181****202622 | E71: 护理部导诊员 | F71: C08 | G71: =VLOOKUP(C:C,[1]汇总得分!$B:$D,3,FALSE) -> 第二考场 | H71: =VLOOKUP(C:C,[1]汇总得分!$B:$C,2,FALSE) -> 96 | I71: =VLOOKUP(C:C,[1]汇总得分!$E:$G,3,FALSE) -> 72.00 | J71: =VLOOKUP(C:C,[1]汇总得分!$E:$H,4,FALSE) -> 0.97 | K71: =VLOOKUP(C:C,[1]汇总得分!$E:$I,5,FALSE) -> 69.89
A72: 71 | B72: 52003080229 | C72: 杨柳 | D72: 520421****220047 | E72: 护理部导诊员 | F72: C08 | G72: =VLOOKUP(C:C,[1]汇总得分!$B:$D,3,FALSE) -> 第二考场 | H72: =VLOOKUP(C:C,[1]汇总得分!$B:$C,2,FALSE) -> 101 | I72: =VLOOKUP(C:C,[1]汇总得分!$E:$G,3,FALSE) -> 72.00 | J72: =VLOOKUP(C:C,[1]汇总得分!$E:$H,4,FALSE) -> 0.97 | K72: =VLOOKUP(C:C,[1]汇总得分!$E:$I,5,FALSE) -> 69.89
A73: 72 | B73: 52003080153 | C73: 陈星月 | D73: 522426****257367 | E73: 护理部导诊员 | F73: C08 | G73: =VLOOKUP(C:C,[1]汇总得分!$B:$D,3,FALSE) -> 第二考场 | H73: =VLOOKUP(C:C,[1]汇总得分!$B:$C,2,FALSE) -> 113 | I73: =VLOOKUP(C:C,[1]汇总得分!$E:$G,3,FALSE) -> 72.00 | J73: =VLOOKUP(C:C,[1]汇总得分!$E:$H,4,FALSE) -> 0.97 | K73: =VLOOKUP(C:C,[1]汇总得分!$E:$I,5,FALSE) -> 69.89
A74: 73 | B74: 52003080160 | C74: 吴正兰 | D74: 522724****092189 | E74: 护理部导诊员 | F74: C08 | G74: =VLOOKUP(C:C,[1]汇总得分!$B:$D,3,FALSE) -> 第二考场 | H74: =VLOOKUP(C:C,[1]汇总得分!$B:$C,2,FALSE) -> 31 | I74: =VLOOKUP(C:C,[1]汇总得分!$E:$G,3,FALSE) -> 72.00 | J74: =VLOOKUP(C:C,[1]汇总得分!$E:$H,4,FALSE) -> 0.97 | K74: =VLOOKUP(C:C,[1]汇总得分!$E:$I,5,FALSE) -> 69.89
A75: 74 | B75: 52003080151 | C75: 杨敏 | D75: 522422****224029 | E75: 护理部导诊员 | F75: C08 | G75: =VLOOKUP(C:C,[1]汇总得分!$B:$D,3,FALSE) -> 第二考场 | H75: =VLOOKUP(C:C,[1]汇总得分!$B:$C,2,FALSE) -> 63 | I75: =VLOOKUP(C:C,[1]汇总得分!$E:$G,3,FALSE) -> 72.00 | J75: =VLOOKUP(C:C,[1]汇总得分!$E:$H,4,FALSE) -> 0.97 | K75: =VLOOKUP(C:C,[1]汇总得分!$E:$I,5,FALSE) -> 69.89
A76: 75 | B76: 52003080007 | C76: 林钰奉 | D76: 522130****050827 | E76: 护理部导诊员 | F76: C08 | G76: =VLOOKUP(C:C,[1]汇总得分!$B:$D,3,FALSE) -> 第二考场 | H76: =VLOOKUP(C:C,[1]汇总得分!$B:$C,2,FALSE) -> 124 | I76: =VLOOKUP(C:C,[1]汇总得分!$E:$G,3,FALSE) -> 71.67 | J76: =VLOOKUP(C:C,[1]汇总得分!$E:$H,4,FALSE) -> 0.97 | K76: =VLOOKUP(C:C,[1]汇总得分!$E:$I,5,FALSE) -> 69.57
A77: 76 | B77: 52003080220 | C77: 田婷 | D77: 522228****150189 | E77: 护理部导诊员 | F77: C08 | G77: =VLOOKUP(C:C,[1]汇总得分!$B:$D,3,FALSE) -> 第二考场 | H77: =VLOOKUP(C:C,[1]汇总得分!$B:$C,2,FALSE) -> 27 | I77: =VLOOKUP(C:C,[1]汇总得分!$E:$G,3,FALSE) -> 71.67 | J77: =VLOOKUP(C:C,[1]汇总得分!$E:$H,4,FALSE) -> 0.97 | K77: =VLOOKUP(C:C,[1]汇总得分!$E:$I,5,FALSE) -> 69.57
A78: 77 | B78: 52003080332 | C78: 彭依婷 | D78: 522229****033625 | E78: 护理部导诊员 | F78: C08 | G78: =VLOOKUP(C:C,[1]汇总得分!$B:$D,3,FALSE) -> 第二考场 | H78: =VLOOKUP(C:C,[1]汇总得分!$B:$C,2,FALSE) -> 115 | I78: =VLOOKUP(C:C,[1]汇总得分!$E:$G,3,FALSE) -> 71.67 | J78: =VLOOKUP(C:C,[1]汇总得分!$E:$H,4,FALSE) -> 0.97 | K78: =VLOOKUP(C:C,[1]汇总得分!$E:$I,5,FALSE) -> 69.57
A79: 78 | B79: 52003080208 | C79: 余泷 | D79: 500222****036643 | E79: 护理部导诊员 | F79: C08 | G79: =VLOOKUP(C:C,[1]汇总得分!$B:$D,3,FALSE) -> 第二考场 | H79: =VLOOKUP(C:C,[1]汇总得分!$B:$C,2,FALSE) -> 110 | I79: =VLOOKUP(C:C,[1]汇总得分!$E:$G,3,FALSE) -> 71.33 | J79: =VLOOKUP(C:C,[1]汇总得分!$E:$H,4,FALSE) -> 0.97 | K79: =VLOOKUP(C:C,[1]汇总得分!$E:$I,5,FALSE) -> 69.24
A80: 79 | B80: 52003080319 | C80: 张涛 | D80: 522725****097836 | E80: 护理部导诊员 | F80: C08 | G80: =VLOOKUP(C:C,[1]汇总得分!$B:$D,3,FALSE) -> 第二考场 | H80: =VLOOKUP(C:C,[1]汇总得分!$B:$C,2,FALSE) -> 125 | I80: =VLOOKUP(C:C,[1]汇总得分!$E:$G,3,FALSE) -> 71.33 | J80: =VLOOKUP(C:C,[1]汇总得分!$E:$H,4,FALSE) -> 0.97 | K80: =VLOOKUP(C:C,[1]汇总得分!$E:$I,5,FALSE) -> 69.24
A81: 80 | B81: 52003080269 | C81: 罗小丽 | D81: 522323****028520 | E81: 护理部导诊员 | F81: C08 | G81: =VLOOKUP(C:C,[1]汇总得分!$B:$D,3,FALSE) -> 第二考场 | H81: =VLOOKUP(C:C,[1]汇总得分!$B:$C,2,FALSE) -> 95 | I81: =VLOOKUP(C:C,[1]汇总得分!$E:$G,3,FALSE) -> 71.33 | J81: =VLOOKUP(C:C,[1]汇总得分!$E:$H,4,FALSE) -> 0.97 | K81: =VLOOKUP(C:C,[1]汇总得分!$E:$I,5,FALSE) -> 69.24
A82: 81 | B82: 52003080127 | C82: 王典 | D82: 520102****143828 | E82: 护理部导诊员 | F82: C08 | G82: =VLOOKUP(C:C,[1]汇总得分!$B:$D,3,FALSE) -> 第二考场 | H82: =VLOOKUP(C:C,[1]汇总得分!$B:$C,2,FALSE) -> 48 | I82: =VLOOKUP(C:C,[1]汇总得分!$E:$G,3,FALSE) -> 71.00 | J82: =VLOOKUP(C:C,[1]汇总得分!$E:$H,4,FALSE) -> 0.97 | K82: =VLOOKUP(C:C,[1]汇总得分!$E:$I,5,FALSE) -> 68.92
A83: 82 | B83: 52003080006 | C83: 王成潞 | D83: 520112****012821 | E83: 护理部导诊员 | F83: C08 | G83: =VLOOKUP(C:C,[1]汇总得分!$B:$D,3,FALSE) -> 第二考场 | H83: =VLOOKUP(C:C,[1]汇总得分!$B:$C,2,FALSE) -> 49 | I83: =VLOOKUP(C:C,[1]汇总得分!$E:$G,3,FALSE) -> 71.00 | J83: =VLOOKUP(C:C,[1]汇总得分!$E:$H,4,FALSE) -> 0.97 | K83: =VLOOKUP(C:C,[1]汇总得分!$E:$I,5,FALSE) -> 68.92
A84: 83 | B84: 52003080175 | C84: 程倩丽 | D84: 522130****225224 | E84: 护理部导诊员 | F84: C08 | G84: =VLOOKUP(C:C,[1]汇总得分!$B:$D,3,FALSE) -> 第二考场 | H84: =VLOOKUP(C:C,[1]汇总得分!$B:$C,2,FALSE) -> 32 | I84: =VLOOKUP(C:C,[1]汇总得分!$E:$G,3,FALSE) -> 70.67 | J84: =VLOOKUP(C:C,[1]汇总得分!$E:$H,4,FALSE) -> 0.97 | K84: =VLOOKUP(C:C,[1]汇总得分!$E:$I,5,FALSE) -> 68.60
A85: 84 | B85: 52003080011 | C85: 严雪 | D85: 522221****044381 | E85: 护理部导诊员 | F85: C08 | G85: =VLOOKUP(C:C,[1]汇总得分!$B:$D,3,FALSE) -> 第二考场 | H85: =VLOOKUP(C:C,[1]汇总得分!$B:$C,2,FALSE) -> 34 | I85: =VLOOKUP(C:C,[1]汇总得分!$E:$G,3,FALSE) -> 70.33 | J85: =VLOOKUP(C:C,[1]汇总得分!$E:$H,4,FALSE) -> 0.97 | K85: =VLOOKUP(C:C,[1]汇总得分!$E:$I,5,FALSE) -> 68.27
A86: 85 | B86: 52003080282 | C86: 陈俊豪 | D86: 522228****181111 | E86: 护理部导诊员 | F86: C08 | G86: =VLOOKUP(C:C,[1]汇总得分!$B:$D,3,FALSE) -> 第二考场 | H86: =VLOOKUP(C:C,[1]汇总得分!$B:$C,2,FALSE) -> 2 | I86: =VLOOKUP(C:C,[1]汇总得分!$E:$G,3,FALSE) -> 69.33 | J86: =VLOOKUP(C:C,[1]汇总得分!$E:$H,4,FALSE) -> 0.97 | K86: =VLOOKUP(C:C,[1]汇总得分!$E:$I,5,FALSE) -> 67.30
A87: 86 | B87: 52003080071 | C87: 施念 | D87: 522121****203266 | E87: 护理部导诊员 | F87: C08 | G87: =VLOOKUP(C:C,[1]汇总得分!$B:$D,3,FALSE) -> 第二考场 | H87: =VLOOKUP(C:C,[1]汇总得分!$B:$C,2,FALSE) -> 1 | I87: =VLOOKUP(C:C,[1]汇总得分!$E:$G,3,FALSE) -> 68.67 | J87: =VLOOKUP(C:C,[1]汇总得分!$E:$H,4,FALSE) -> 0.97 | K87: =VLOOKUP(C:C,[1]汇总得分!$E:$I,5,FALSE) -> 66.66
A88: 87 | B88: 52003080209 | C88: 陈芳 | D88: 522527****181125 | E88: 护理部导诊员 | F88: C08 | G88: =VLOOKUP(C:C,[1]汇总得分!$B:$D,3,FALSE) -> 第二考场 | H88: =VLOOKUP(C:C,[1]汇总得分!$B:$C,2,FALSE) -> 54 | I88: =VLOOKUP(C:C,[1]汇总得分!$E:$G,3,FALSE) -> 68.00 | J88: =VLOOKUP(C:C,[1]汇总得分!$E:$H,4,FALSE) -> 0.97 | K88: =VLOOKUP(C:C,[1]汇总得分!$E:$I,5,FALSE) -> 66.01
A89: 88 | B89: 52003080214 | C89: 陈芳 | D89: 522425****025127 | E89: 护理部导诊员 | F89: C08 | G89: =VLOOKUP(C:C,[1]汇总得分!$B:$D,3,FALSE) -> 第二考场 | H89: =VLOOKUP(C:C,[1]汇总得分!$B:$C,2,FALSE) -> 54 | I89: =VLOOKUP(C:C,[1]汇总得分!$E:$G,3,FALSE) -> 68.00 | J89: =VLOOKUP(C:C,[1]汇总得分!$E:$H,4,FALSE) -> 0.97 | K89: =VLOOKUP(C:C,[1]汇总得分!$E:$I,5,FALSE) -> 66.01
A90: 89 | B90: 52003080056 | C90: 毛玲艳 | D90: 520221****012721 | E90: 护理部导诊员 | F90: C08 | G90: =VLOOKUP(C:C,[1]汇总得分!$B:$D,3,FALSE) -> 第二考场 | H90: =VLOOKUP(C:C,[1]汇总得分!$B:$C,2,FALSE) -> 61 | I90: =VLOOKUP(C:C,[1]汇总得分!$E:$G,3,FALSE) -> 67.00 | J90: =VLOOKUP(C:C,[1]汇总得分!$E:$H,4,FALSE) -> 0.97 | K90: =VLOOKUP(C:C,[1]汇总得分!$E:$I,5,FALSE) -> 65.04
A91: 90 | B91: 52003080104 | C91: 姚莉 | D91: 522224****283620 | E91: 护理部导诊员 | F91: C08 | K91: 缺考
A92: 91 | B92: 52003080333 | C92: 周玲艳 | D92: 520103****021625 | E92: 护理部导诊员 | F92: C08 | K92: 缺考
A93: 92 | B93: 52003080325 | C93: 代密 | D93: 522428****254844 | E93: 护理部导诊员 | F93: C08 | K93: 缺考
A94: 93 | B94: 52003080149 | C94: 敖紫微 | D94: 520113****052823 | E94: 护理部导诊员 | F94: C08 | K94: 缺考
A95: 94 | B95: 52003080251 | C95: 罗思格 | D95: 532625****121340 | E95: 护理部导诊员 | F95: C08 | K95: 缺考
A96: 95 | B96: 52003080285 | C96: 张悦 | D96: 522122****181621 | E96: 护理部导诊员 | F96: C08 | K96: 缺考
A97: 96 | B97: 52003080193 | C97: 涂琳 | D97: 522128****243589 | E97: 护理部导诊员 | F97: C08 | K97: 缺考
A98: 97 | B98: 52003080102 | C98: 龙丹 | D98: 522424****223865 | E98: 护理部导诊员 | F98: C08 | K98: 缺考
A99: 98 | B99: 52003080250 | C99: 陈宗叶 | D99: 522701****103928 | E99: 护理部导诊员 | F99: C08 | K99: 缺考
A100: 99 | B100: 52003080249 | C100: 李露 | D100: 522426****15712x | E100: 护理部导诊员 | F100: C08 | K100: 缺考
A101: 100 | B101: 52003080210 | C101: 赵乾菊 | D101: 520122****090623 | E101: 护理部导诊员 | F101: C08 | K101: 缺考
A102: 101 | B102: 52003080202 | C102: 石莉琳 | D102: 522225****282047 | E102: 护理部导诊员 | F102: C08 | K102: 缺考
A103: 102 | B103: 52003080238 | C103: 伍诗语 | D103: 520112****010920 | E103: 护理部导诊员 | F103: C08 | K103: 缺考
A104: 103 | B104: 52003080016 | C104: 袁燕 | D104: 522131****104625 | E104: 护理部导诊员 | F104: C08 | K104: 缺考
A105: 104 | B105: 52003080017 | C105: 覃攀 | D105: 522126****124016 | E105: 护理部导诊员 | F105: C08 | K105: 缺考
A106: 105 | B106: 52003080042 | C106: 肖维莉 | D106: 522101****225628 | E106: 护理部导诊员 | F106: C08 | K106: 缺考
A107: 106 | B107: 52003080063 | C107: 宣钰珂 | D107: 520102****274049 | E107: 护理部导诊员 | F107: C08 | K107: 缺考
A108: 107 | B108: 52003080260 | C108: 胡思宇 | D108: 520181****08171x | E108: 护理部导诊员 | F108: C08 | K108: 缺考
A109: 108 | B109: 52003080230 | C109: 穆元英 | D109: 532128****121929 | E109: 护理部导诊员 | F109: C08 | K109: 缺考
A110: 109 | B110: 52003080035 | C110: 孔曼 | D110: 522426****286520 | E110: 护理部导诊员 | F110: C08 | K110: 缺考
A111: 110 | B111: 52003080045 | C111: 周钰娟 | D111: 522121****297641 | E111: 护理部导诊员 | F111: C08 | K111: 缺考
A112: 111 | B112: 52003080093 | C112: 陈潞瑶 | D112: 522731****16002X | E112: 护理部导诊员 | F112: C08 | K112: 缺考
A113: 112 | B113: 52003080091 | C113: 吴道群 | D113: 522423****209384 | E113: 护理部导诊员 | F113: C08 | K113: 缺考
A114: 113 | B114: 52003080066 | C114: 刘消消 | D114: 522124****180982 | E114: 护理部导诊员 | F114: C08 | K114: 缺考
A115: 114 | B115: 52003080146 | C115: 方若娴 | D115: 522730****171728 | E115: 护理部导诊员 | F115: C08 | K115: 缺考
A116: 115 | B116: 52003080303 | C116: 陈紫涵 | D116: 522425****046964 | E116: 护理部导诊员 | F116: C08 | K116: 缺考
A117: 116 | B117: 52003080236 | C117: 廖继鹏 | D117: 522325****060819 | E117: 护理部导诊员 | F117: C08 | K117: 缺考
A118: 117 | B118: 52003080041 | C118: 章秀花 | D118: 522624****130063 | E118: 护理部导诊员 | F118: C08 | K118: 缺考
A119: 118 | B119: 52003080138 | C119: 胡娜娜 | D119: 522526****111824 | E119: 护理部导诊员 | F119: C08 | K119: 缺考
A120: 119 | B120: 52003080174 | C120: 陈香 | D120: 522424****199722 | E120: 护理部导诊员 | F120: C08 | K120: 缺考
A121: 120 | B121: 52003080244 | C121: 李希雯 | D121: 522127****190025 | E121: 护理部导诊员 | F121: C08 | K121: 缺考
A122: 121 | B122: 52003080273 | C122: 唐丹 | D122: 522323****232363 | E122: 护理部导诊员 | F122: C08 | K122: 缺考
A123: 122 | B123: 52003080010 | C123: 黄月跃 | D123: 522724****273144 | E123: 护理部导诊员 | F123: C08 | K123: 缺考
A124: 123 | B124: 52003080263 | C124: 张月莹 | D124: 372330****19304X | E124: 护理部导诊员 | F124: C08 | K124: 缺考
A125: 124 | B125: 52003080094 | C125: 李芳 | D125: 522424****160041 | E125: 护理部导诊员 | F125: C08 | K125: 缺考
A126: 125 | B126: 52003080271 | C126: 王迁迁 | D126: 522727****014829 | E126: 护理部导诊员 | F126: C08 | K126: 缺考
A127: 126 | B127: 52003080291 | C127: 彭媛 | D127: 522725****255525 | E127: 护理部导诊员 | F127: C08 | K127: 缺考
A128: 127 | B128: 52003080157 | C128: 张溢 | D128: 520181****201724 | E128: 护理部导诊员 | F128: C08 | K128: 缺考
A129: 128 | B129: 52003080322 | C129: 陈正梅 | D129: 522328****084129 | E129: 护理部导诊员 | F129: C08 | K129: 缺考
A130: 129 | B130: 52003080256 | C130: 陈娅 | D130: 522422****03322X | E130: 护理部导诊员 | F130: C08 | K130: 缺考
A131: 130 | B131: 52003080022 | C131: 陆淋淋 | D131: 522132****097125 | E131: 护理部导诊员 | F131: C08 | K131: 缺考
A132: 131 | B132: 52003080144 | C132: 杨雯 | D132: 520181****265226 | E132: 护理部导诊员 | F132: C08 | K132: 缺考
A133: 132 | B133: 52003080311 | C133: 陆妹朵 | D133: 522728****083623 | E133: 护理部导诊员 | F133: C08 | K133: 缺考
A134: 133 | B134: 52003080019 | C134: 何恩慧 | D134: 522528****151223 | E134: 护理部导诊员 | F134: C08 | K134: 缺考
A135: 134 | B135: 52003080241 | C135: 周萍萍 | D135: 520102****197828 | E135: 护理部导诊员 | F135: C08 | K135: 缺考
A136: 135 | B136: 52003080172 | C136: 雷文蓉 | D136: 520402****190023 | E136: 护理部导诊员 | F136: C08 | K136: 缺考
A137: 136 | B137: 52003080181 | C137: 罗连翠 | D137: 522723****115148 | E137: 护理部导诊员 | F137: C08 | K137: 缺考
A138: 137 | B138: 52003080329 | C138: 李佳 | D138: 522425****123929 | E138: 护理部导诊员 | F138: C08 | K138: 缺考
A139: 138 | B139: 52003080283 | C139: 焦艳丽 | D139: 520321****190826 | E139: 护理部导诊员 | F139: C08 | K139: 缺考
A140: 139 | B140: 52003080154 | C140: 张珊珊 | D140: 522226****08006X | E140: 护理部导诊员 | F140: C08 | K140: 缺考
A141: 140 | B141: 52003080227 | C141: 王洪迪 | D141: 522401****084844 | E141: 护理部导诊员 | F141: C08 | K141: 缺考
A142: 141 | B142: 52003080078 | C142: 田进婵 | D142: 522227****17768X | E142: 护理部导诊员 | F142: C08 | K142: 缺考
A143: 142 | B143: 52003080083 | C143: 李艳 | D143: 522426****118323 | E143: 护理部导诊员 | F143: C08 | K143: 缺考
A144: 143 | B144: 52003080158 | C144: 罗丽萍 | D144: 522401****052526 | E144: 护理部导诊员 | F144: C08 | K144: 缺考
A145: 144 | B145: 52003080152 | C145: 唐小艳 | D145: 522634****043021 | E145: 护理部导诊员 | F145: C08 | K145: 缺考
A146: 145 | B146: 52003080189 | C146: 余家丽 | D146: 522324****183621 | E146: 护理部导诊员 | F146: C08 | K146: 缺考
A147: 146 | B147: 52003080296 | C147: 颜倩 | D147: 522321****151125 | E147: 护理部导诊员 | F147: C08 | K147: 缺考
A148: 147 | B148: 52003080165 | C148: 尚分 | D148: 522725****047821 | E148: 护理部导诊员 | F148: C08 | K148: 缺考
A149: 148 | B149: 52003080215 | C149: 曹莉丽 | D149: 522130****116020 | E149: 护理部导诊员 | F149: C08 | K149: 缺考
A150: 149 | B150: 52003080242 | C150: 彭芝芝 | D150: 522425****200069 | E150: 护理部导诊员 | F150: C08 | K150: 缺考
A151: 150 | B151: 52003080121 | C151: 罗阳 | D151: 522723****191562 | E151: 护理部导诊员 | F151: C08 | K151: 缺考
A152: 151 | B152: 52003080301 | C152: 秦雪雪 | D152: 522424****184623 | E152: 护理部导诊员 | F152: C08 | K152: 缺考
A153: 152 | B153: 52003080047 | C153: 袁鸿洁 | D153: 522132****290943 | E153: 护理部导诊员 | F153: C08 | K153: 缺考
A154: 153 | B154: 52003080265 | C154: 王燕 | D154: 522401****04662X | E154: 护理部导诊员 | F154: C08 | K154: 缺考
A155: 154 | B155: 52003080086 | C155: 王婷婷 | D155: 520424****030047 | E155: 护理部导诊员 | F155: C08 | K155: 缺考
A156: 155 | B156: 52003080182 | C156: 沈烨 | D156: 530381****304528 | E156: 护理部导诊员 | F156: C08 | K156: 缺考
A157: 156 | B157: 52003080113 | C157: 黄强容 | D157: 522225****118427 | E157: 护理部导诊员 | F157: C08 | K157: 缺考
A158: 157 | B158: 52003080038 | C158: 詹桠旭 | D158: 522223****082024 | E158: 护理部导诊员 | F158: C08 | K158: 缺考
A159: 158 | B159: 52003080084 | C159: 马春 | D159: 522427****19450X | E159: 护理部导诊员 | F159: C08 | K159: 缺考
A160: 159 | B160: 52003080266 | C160: 张梦玲 | D160: 522428****064420 | E160: 护理部导诊员 | F160: C08 | K160: 缺考
A161: 160 | B161: 52003080206 | C161: 陈艳玲 | D161: 522427****244205 | E161: 护理部导诊员 | F161: C08 | K161: 缺考
A162: 161 | B162: 52003080192 | C162: 金贤 | D162: 520111****23332X | E162: 护理部导诊员 | F162: C08 | K162: 缺考
A163: 162 | B163: 52003080259 | C163: 孙晓丽 | D163: 532932****14092X | E163: 护理部导诊员 | F163: C08 | K163: 缺考
A164: 163 | B164: 52003080191 | C164: 史江林 | D164: 522425****121225 | E164: 护理部导诊员 | F164: C08 | K164: 缺考
A165: 164 | B165: 52003080330 | C165: 朱旭东 | D165: 522126****071012 | E165: 护理部导诊员 | F165: C08 | K165: 缺考
A166: 165 | B166: 52003080120 | C166: 马郃云 | D166: 520181****24171X | E166: 护理部导诊员 | F166: C08 | K166: 缺考
A167: 166 | B167: 52003080119 | C167: 王婷 | D167: 522425****219347 | E167: 护理部导诊员 | F167: C08 | K167: 缺考
A168: 167 | B168: 52003080058 | C168: 彭云 | D168: 522425****178729 | E168: 护理部导诊员 | F168: C08 | K168: 缺考
A169: 168 | B169: 52003080252 | C169: 李丹丹 | D169: 522128****21002x | E169: 护理部导诊员 | F169: C08 | K169: 缺考
A170: 169 | B170: 52003080213 | C170: 杨顺雯 | D170: 520102****192428 | E170: 护理部导诊员 | F170: C08 | K170: 缺考
A171: 170 | B171: 52003080243 | C171: 林秀丽 | D171: 522528****092847 | E171: 护理部导诊员 | F171: C08 | K171: 缺考
A172: 171 | B172: 52003080295 | C172: 杨文文 | D172: 520113****263626 | E172: 护理部导诊员 | F172: C08 | K172: 缺考
A173: 172 | B173: 52003080299 | C173: 胡忠云 | D173: 522422****204028 | E173: 护理部导诊员 | F173: C08 | K173: 缺考
A174: 173 | B174: 52003080110 | C174: 朱凡靠 | D174: 522427****283822 | E174: 护理部导诊员 | F174: C08 | K174: 缺考
A175: 174 | B175: 52003080184 | C175: 何云丹 | D175: 522128****281569 | E175: 护理部导诊员 | F175: C08 | K175: 缺考
A176: 175 | B176: 52003080176 | C176: 杨春艳 | D176: 522428****282028 | E176: 护理部导诊员 | F176: C08 | K176: 缺考
A177: 176 | B177: 52003080001 | C177: 周清雅 | D177: 522121****166846 | E177: 护理部导诊员 | F177: C08 | K177: 缺考
A178: 177 | B178: 52003080327 | C178: 赵佳佳 | D178: 522123****222023 | E178: 护理部导诊员 | F178: C08 | K178: 缺考
A179: 178 | B179: 52003080257 | C179: 陈瑜 | D179: 522425****190046 | E179: 护理部导诊员 | F179: C08 | K179: 缺考
A180: 179 | B180: 52003080267 | C180: 李世会 | D180: 522121****295028 | E180: 护理部导诊员 | F180: C08 | K180: 缺考
A181: 180 | B181: 52003080167 | C181: 田玉雪 | D181: 522626****050826 | E181: 护理部导诊员 | F181: C08 | K181: 缺考
A182: 181 | B182: 52003080161 | C182: 陈守林 | D182: 522225****160810 | E182: 护理部导诊员 | F182: C08 | K182: 缺考
A183: 182 | B183: 52003080180 | C183: 杨正敏 | D183: 522226****120084 | E183: 护理部导诊员 | F183: C08 | K183: 缺考
A184: 183 | B184: 52003080272 | C184: 金媛媛 | D184: 530381****112924 | E184: 护理部导诊员 | F184: C08 | K184: 缺考
A185: 184 | B185: 52003080122 | C185: 赵琼 | D185: 522428****240622 | E185: 护理部导诊员 | F185: C08 | K185: 缺考
A186: 185 | B186: 52003080108 | C186: 穆小会 | D186: 522132****202627 | E186: 护理部导诊员 | F186: C08 | K186: 缺考
A187: 186 | B187: 52003080055 | C187: 雷余慧 | D187: 520103****035220 | E187: 护理部导诊员 | F187: C08 | K187: 缺考
A188: 187 | B188: 52003080292 | C188: 黄文玉 | D188: 522101****134625 | E188: 护理部导诊员 | F188: C08 | K188: 缺考
A189: 188 | B189: 52003080245 | C189: 李志琴 | D189: 522426****042448 | E189: 护理部导诊员 | F189: C08 | K189: 缺考
A190: 189 | B190: 52003080280 | C190: 范成钰 | D190: 522501****155802 | E190: 护理部导诊员 | F190: C08 | K190: 缺考
A191: 190 | B191: 52003080096 | C191: 龙文 | D191: 522427****165228 | E191: 护理部导诊员 | F191: C08 | K191: 缺考
A192: 191 | B192: 52003080155 | C192: 王雪 | D192: 520102****295822 | E192: 护理部导诊员 | F192: C08 | K192: 缺考
A193: 192 | B193: 52003080201 | C193: 张恋 | D193: 522228****132427 | E193: 护理部导诊员 | F193: C08 | K193: 缺考
A194: 193 | B194: 52003080020 | C194: 朱青青 | D194: 522129****082520 | E194: 护理部导诊员 | F194: C08 | K194: 缺考
A195: 194 | B195: 52003080211 | C195: 任婷 | D195: 522422****191623 | E195: 护理部导诊员 | F195: C08 | K195: 缺考
A196: 195 | B196: 52003080137 | C196: 张秀 | D196: 522324****111242 | E196: 护理部导诊员 | F196: C08 | K196: 缺考
A197: 196 | B197: 52003080159 | C197: 李安宁 | D197: 520112****020648 | E197: 护理部导诊员 | F197: C08 | K197: 缺考
A198: 197 | B198: 52003080232 | C198: 邓婕 | D198: 522121****051228 | E198: 护理部导诊员 | F198: C08 | K198: 缺考
A199: 198 | B199: 52003080100 | C199: 曾东艳 | D199: 522426****155621 | E199: 护理部导诊员 | F199: C08 | K199: 缺考
A200: 199 | B200: 52003080188 | C200: 赵江梅 | D200: 522128****137527 | E200: 护理部导诊员 | F200: C08 | K200: 缺考
... 74 more rows

Sheet 后勤科工程造价管理岗C10
A1: 序号 | B1: 报名序号 | C1: 姓名 | D1: 身份证号 | E1: 岗位名称 | F1: 岗位代码 | G1: 抽签号 | H1: 面试成绩 | I1: 是否进入资格复审
A2: 1 | B2: 52003100009 | C2: 杨天雯静 | D2: 5201021****62427 | E2: 后勤科工程造价管理岗 | F2: C10 | G2: 4 | H2: 88.33 | I2: 是
A3: 2 | B3: 52003100005 | C3: 赵洪成 | D3: 5116021****6509X | E3: 后勤科工程造价管理岗 | F3: C10 | G3: 6 | H3: 87.00
A4: 3 | B4: 52003100001 | C4: 李航 | D4: 5221211****52672 | E4: 后勤科工程造价管理岗 | F4: C10 | G4: 5 | H4: 76.33
A5: 4 | B5: 52003100033 | C5: 樊国陆 | D5: 5224011****43215 | E5: 后勤科工程造价管理岗 | F5: C10 | G5: 1 | H5: 71.67
A6: 5 | B6: 52003100019 | C6: 安晓丽 | D6: 5224231****34022 | E6: 后勤科工程造价管理岗 | F6: C10 | G6: 7 | H6: 71.33
A7: 6 | B7: 52003100028 | C7: 刘桂坊 | D7: 5201121****02842 | E7: 后勤科工程造价管理岗 | F7: C10 | H7: 缺考
A8: 7 | B8: 52003100034 | C8: 龙焕梅 | D8: 5226311****69220 | E8: 后勤科工程造价管理岗 | F8: C10 | H8: 缺考

Sheet 后勤科综合管理岗C11
A1: 序号 | B1: 报名序号 | C1: 姓名 | D1: 身份证号 | E1: 岗位名称 | F1: 岗位代码 | G1: 抽签号 | H1: 面试成绩 | I1: 是否进入资格复审
A2: 1 | B2: 52003110016 | C2: 申圆圆 | D2: 522126****187016 | E2: 后勤科综合管理岗 | F2: C11 | G2: 13 | H2: 88.66 | I2: 是
A3: 2 | B3: 52003110017 | C3: 张万超 | D3: 522501****085268 | E3: 后勤科综合管理岗 | F3: C11 | G3: 24 | H3: 88.00 | I3: 是
A4: 3 | B4: 52003110012 | C4: 贺延芳 | D4: 520121****253841 | E4: 后勤科综合管理岗 | F4: C11 | G4: 16 | H4: 80.00
A5: 4 | B5: 52003110024 | C5: 吴晗 | D5: 522128****122538 | E5: 后勤科综合管理岗 | F5: C11 | G5: 9 | H5: 77.66
A6: 5 | B6: 52003110058 | C6: 李海境 | D6: 522422****270826 | E6: 后勤科综合管理岗 | F6: C11 | G6: 22 | H6: 77.66
A7: 6 | B7: 52003110049 | C7: 郭俊 | D7: 522729****190012 | E7: 后勤科综合管理岗 | F7: C11 | G7: 8 | H7: 76.33
A8: 7 | B8: 52003110028 | C8: 朱亮 | D8: 522501****124630 | E8: 后勤科综合管理岗 | F8: C11 | G8: 27 | H8: 76.00
A9: 8 | B9: 52003110041 | C9: 梁蓉蓉 | D9: 520421****162221 | E9: 后勤科综合管理岗 | F9: C11 | G9: 29 | H9: 75.00
A10: 9 | B10: 52003110001 | C10: 赵志鑫 | D10: 520123****051217 | E10: 后勤科综合管理岗 | F10: C11 | G10: 21 | H10: 74.33
A11: 10 | B11: 52003110053 | C11: 王力 | D11: 520121****262817 | E11: 后勤科综合管理岗 | F11: C11 | G11: 10 | H11: 74.00
A12: 11 | B12: 52003110015 | C12: 李娇 | D12: 522427****033765 | E12: 后勤科综合管理岗 | F12: C11 | G12: 25 | H12: 74.00
A13: 12 | B13: 52003110044 | C13: 陈晓萍 | D13: 522501****242023 | E13: 后勤科综合管理岗 | F13: C11 | G13: 17 | H13: 73.66
A14: 13 | B14: 52003110004 | C14: 叶蒸富 | D14: 522129****235019 | E14: 后勤科综合管理岗 | F14: C11 | G14: 14 | H14: 73.33
A15: 14 | B15: 52003110022 | C15: 安倩颖 | D15: 522221****191248 | E15: 后勤科综合管理岗 | F15: C11 | G15: 23 | H15: 70.00
A16: 15 | B16: 52003110077 | C16: 田姣姣 | D16: 522630****170484 | E16: 后勤科综合管理岗 | F16: C11 | H16: 缺考
A17: 16 | B17: 52003110073 | C17: 丁成辰 | D17: 522401****176428 | E17: 后勤科综合管理岗 | F17: C11 | H17: 缺考
A18: 17 | B18: 52003110069 | C18: 陈玮 | D18: 522101****156413 | E18: 后勤科综合管理岗 | F18: C11 | H18: 缺考
A19: 18 | B19: 52003110031 | C19: 何卓怡 | D19: 522427****111110 | E19: 后勤科综合管理岗 | F19: C11 | H19: 缺考
A20: 19 | B20: 52003110056 | C20: 何秋霖 | D20: 520221****151820 | E20: 后勤科综合管理岗 | F20: C11 | H20: 缺考
A21: 20 | B21: 52003110020 | C21: 高小芬 | D21: 520425****219921 | E21: 后勤科综合管理岗 | F21: C11 | H21: 缺考
A22: 21 | B22: 52003110021 | C22: 李静 | D22: 522129****220025 | E22: 后勤科综合管理岗 | F22: C11 | H22: 缺考
A23: 22 | B23: 52003110068 | C23: 甘舰 | D23: 522224****182012 | E23: 后勤科综合管理岗 | F23: C11 | H23: 缺考
